{"text_format":"1","workbook":"xlsx","n_sheets":6,"sheets":["Introducción","Paso a paso","Formato","Recomendaciones","Anexos","Hoja1"],"not_rendered":{"charts":0,"images":29,"macros":1,"external_links":2,"defined_names":2,"comments":0,"pivot_tables":0},"unopened":[],"bounds":{"document_bytes":16777216,"sheet_cells":100000,"rows_first":2000,"rows_last":500,"rows_between":2000,"halvings":0,"cell_chars":16384,"cell_head_chars":4096},"cells_cut":0,"cells_raw":0,"read":"whole","date_system":"1900"}

{"sheet":"Introducción","index":0,"n_rows":50,"n_cols":29,"rows_kept":50,"cut":false,"hidden":false,"merged":[[1,2,1,13],[29,2,29,35],[2,2,3,35],[4,2,7,35],[11,2,11,29],[8,2,9,35],[13,2,19,35],[20,2,23,35],[25,2,27,35],[49,2,49,3],[41,2,41,35],[30,2,32,35],[38,4,38,9],[38,12,38,17],[38,28,38,33],[43,2,43,18],[39,2,39,35],[40,2,40,35],[42,2,42,35],[47,2,47,18],[48,2,48,7],[38,20,38,25],[45,2,45,18],[46,2,46,21],[44,2,44,35]]}
[]
[null,null,"¿Qué es la porcinaza?"]
[null,null,"La porcinaza es la mezcla de heces y orina de los cerdos, con algo de descamaciones, pelo, comida no digerida y cantidades variables de agua, en algunos casos contiene material vegetal usado como cama."]
[]
[null,null,"La porcinaza es el principal y más abundante subproducto que se genera en las granjas porcícolas, que al darle un manejo inadecuado, puede ocasionar impactos muy altos al ambiente. Por el contrario la buena gestión y el aprovechamiento de la porcinaza en otras actividades agropecuarias como la fertilización o transformación de su biomasa en energía, permite reducir considerablemente los impactos ambientales."]
[]
[]
[]
[null,null,"Tomado de: Cartilla No. 3 Aprovechamiento de la porcinaza sólida. \nAsociación Colombiana de Porcicultores - FNP"]
[]
[]
[null,null,"¿Por qué realizar un plan de fertilización con base en fósforo?"]
[]
[null,null,"El fósforo es un nutriente altamente requerido por las plantas para su adecuado desarrollo y tiene como funciones principales la transferencia de energía dentro de la planta, la diferenciación celular y el desarrollo de tejidos; este elemento generalmente esta en baja disponibilidad en la mayoría de suelos agrícolas siendo necesario realizar un aporte continuo del mismo; por tal razón y tomando como base el documento \"Manual de uso de la porcinaza en la agricultura\" desarrollado por la Universidad Nacional de Colombia sede Medellín durante el año 2016, en donde se documenta que la concentración de fósforo de la porcinaza sólida fresca siempre es mayor respecto a la concentración de nitrógeno y potasio (relación 3:1); Porkcolombia-FNP ha elaborado el presente simulador con el objetivo de desarrollar un plan de fertilización con porcinaza con base en fósforo que permita a los porcicultores aprovechar al máximo los beneficios nutricionales derivados del subproducto."]
[]
[]
[]
[]
[]
[]
[null,null,"Para esto primero se realiza el cálculo de la porcinaza y el fósforo generado con base en el inventario de animales o en la caracterización de la porcinaza que se produce en la granja, luego se cuantifican las necesidades de fósforo del cultivo que se planea fertilizar con la porcinaza y finalmente el plan le proporcionará según el tipo de aplicación de la porcinaza el tiempo que debe durar su aplicación por unidad de área o por planta según corresponda."]
[]
[]
[]
[]
[null,null,"El presente simulador tiene como finalidad ser una guía para la implementación de planes de fertilización con porcinaza liquida, en ningún caso puede entenderse la información aquí consignada 100 % acorde a las condiciones particulares de cada granja, por tal razón, es necesario que siempre dicho plan sea ajustado por un ingeniero agrónomo de la zona."]
[]
[]
[]
[null,null,"Contenido del archivo:"]
[null,null,"Usted debe hacer click en cada uno de los iconos relacionados a continuación, los cuales le permitirán conocer como esta desarrollado el simulador, visualizar la información anexa e interactuar con el simulador para que usted lleve a cabo su plan de fertilización:"]
[]
[]
[]
[]
[]
[]
[]
[null,null,null,null,"1. Paso a paso",null,null,null,null,null,null,null,"2. Formato",null,null,null,null,null,null,null,"3. Recomendaciones",null,null,null,null,null,null,null,"4. Anexos"]
[null,null,"Basado en los documentos:"]
[null,null,"Fertilización con excreta porcina: Soporte técnico, bondades, riesgos, cálculo del plan de fertilización. Sergio O. Giraldo M."]
[null,null,"Simulador de planes de fertilización con porcinaza líquida versión I-2015. -Porkcolombia-FNP. Julieth L. F. Zorro M."]
[null,null,"Elaborado por: Área Técnica-Porkcolombia-FNP."]
[null,null,"Zulay Tafur - Profesional de suelos."]
[null,null,"Revisado por:"]
[null,null,"William Luengas Estrada - Director Área Técnica."]
[null,null,"María Oliva Rodríguez Galindo - Coordinadora Gestión Ambiental. "]
[null,null,"Jose Fernando Naranjo Rátiva - MVZ-MSc."]
[null,null,"Año:"]
[null,null,2017]

{"sheet":"Paso a paso","index":1,"n_rows":560,"n_cols":35,"rows_kept":560,"cut":false,"hidden":false,"merged":[[283,0,283,3],[283,4,283,35],[245,2,247,35],[249,2,250,35],[252,2,253,35],[254,2,255,35],[257,2,261,35],[263,2,265,35],[269,2,271,35],[273,2,274,35],[276,2,277,35],[278,2,281,35],[266,2,266,35],[240,2,240,35],[242,2,243,35],[202,2,204,35],[211,2,212,35],[213,2,213,35],[16,0,16,37],[18,2,19,35],[0,1,1,36],[3,1,3,36],[2,0,2,37],[72,2,74,35],[76,2,78,35],[80,2,81,35],[82,2,83,35],[21,4,21,35],[63,4,63,35],[63,0,63,3],[64,2,65,35],[56,2,57,35],[61,2,61,35],[44,2,45,35],[46,2,47,35],[48,2,50,35],[21,0,21,3],[23,4,24,33],[118,4,118,35],[118,0,118,3],[120,2,122,35],[124,2,125,35],[103,2,105,35],[112,2,113,9],[115,2,116,35],[151,2,152,35],[153,2,154,35],[127,2,130,35],[131,2,132,35],[147,2,150,35],[156,2,157,35],[201,0,201,3],[201,4,201,35],[185,0,185,3],[185,4,185,35],[186,2,189,35],[184,2,184,35],[355,2,355,35],[357,2,359,35],[334,2,335,35],[332,2,332,35],[309,2,314,35],[318,2,319,35],[324,0,324,3],[324,4,324,35],[326,2,330,35],[315,2,316,35],[387,4,387,35],[387,0,387,3],[389,2,389,36],[391,2,393,35],[395,2,399,35],[430,2,431,35],[411,2,413,35],[415,2,418,35],[409,4,409,35],[409,0,409,3],[468,2,470,35],[472,2,473,35],[435,2,435,35],[437,2,439,35],[441,2,443,35],[495,2,496,35],[498,2,500,35],[493,2,494,35],[475,2,478,19],[481,2,481,35],[483,2,484,35],[486,2,489,35],[556,0,557,37],[559,2,561,35],[535,2,537,35],[539,2,540,35],[542,2,543,35],[545,2,546,35],[548,2,548,35],[550,2,552,35],[554,2,555,35]]}
[null,"INSTRUCCIONES DE DILIGENCIAMIENTO"]
[]
["DATOS DE LA GRANJA"]
[null,"Recuerde diligenciar el encabezado \"Datos de la granja\" al inicio del formato."]
[]
[]
[]
[]
[]
[]
[]
[]
[]
[]
[]
[]
["PLAN DE FERTILIZACIÓN CON PORCINAZA LÍQUIDA"]
[]
[null,null,"Para el diligenciamiento de este plan de fertilización, tenga en cuenta que en algunas secciones se requiere ingresar información específica la cual se demarca por celdas de color café; de igual forma usted podra seleccionar diferentes unidades equivalentes en las casillas demarcadas con color gris."]
[]
[]
["Paso 1:                                                                     ",null,null,null,"Cantidad de porcinaza generada en la granja."]
[]
[null,null,null,null,"La estimación de la cantidad de porcinaza se realiza con base en el inventario de animales existente en la granja y en el peso vivo de los mismos o teniendo en cuenta la capacidad de la misma."]
[]
[]
[]
[]
[]
[]
[]
[]
[]
[]
[]
[]
[]
[]
[]
[]
[]
[]
[]
[]
[null,null,"En el cuadro Datos de entrada debe ingresar el número de animales presentes en la granja por grupo etario y el peso promedio de cada animal en dicha etapa."]
[]
[null,null,"Para aquellas granjas que manejan levante y ceba como solo una fase productiva, el número de animales y el peso promedio del animal (si se cuenta con este) se debe registrar en el campo de ceba."]
[]
[null,null,"El simulador realiza un cálculo teórico de la cantidad de porcinaza generada por la granja, al introducir solamente el inventario de animales por etapa, utilizando los valores presentados en el anexo \"Producción estimada de porcinaza como proporción del peso vivo\" para el promedio de estiércol y el peso del animal en kg ."]
[]
[]
[]
[]
[null,null,"PORCINAZA PRODUCIDA POR GRUPO ETARIO: ",null,null,null,null,null,null,null,null,null,null,null,null,null,null,null,null,null,null,null,null,null,null,null,null,null,null,null,null,null,"Ver anexo."]
[]
[]
[null,null,"Teniendo en cuenta que el 55% de las excretas corresponden a sólidos y el 45% a orina, se calcula la distribución de la porcinaza generada en la granja."]
[]
[]
[null,null,"EXCRETA SÓLIDA \nkg (55%) :"]
[]
[null,null,"A) ORINA\n lt (45%) :"]
[]
["Paso 2:                                                                     ",null,null,null,"Cantidad de agua de lavado empleada en el proceso productivo."]
[null,null,"Para realizar la cuantificación del agua total utilizada en el lavado de la granja, el simulador le realizará tres preguntas:"]
[]
[]
[]
[]
[]
[]
[]
[null,null,"i) ¿Realiza medición del agua de lavado utilizada en la granja?, en caso que no se tenga cuantificado el consumo de agua de limpieza, el cálculo se realizará con el consumo de referencia máximo registrado en el anexo \"Consumo medio de agua de limpieza\"."]
[]
[]
[null,null,null,null,null,null,null,null,null,null,null,null,null,null,null,null,null,null,null,null,null,null,null,null,null,null,null,null,null,null,null,null,null,null,"Ver anexo."]
[null,null,"Si la granja realiza medición del agua de lavado se desplegará la siguiente pregunta ii) ¿Realiza medición según grupo etario? si la respuesta es afirmativa mostrará un nuevo cuadro (parte superior del formato, cuadro datos de entrada) donde debe diligenciar esta información."]
[]
[]
[]
[null,null,"Se debe ingresar el consumo de agua de limpieza por animal diario según grupo etario. Si el lavado de cada etapa no se realiza diariamente se debe usar la columna \"Periodicidad (días)\", ejemplo:"]
[]
[null,null,"La limpieza en gestación se realiza todos los días y se utiliza 1 litro de agua por animal, mientras que la limpieza en el área de Precebos se realiza cada 15 días y se utilizan 9 litros."]
[]
[]
[]
[]
[]
[]
[]
[]
[]
[]
[]
[]
[]
[]
[]
[]
[]
[]
[]
[]
[null,null,"Si en su granja no se tiene la información del consumo de agua de limpieza por grupo etario, el plan de fertilización le preguntará iii) ¿Realiza medición semanal del agua TOTAL de lavado utilizada en la granja?. En este caso solo debe marcar la respuesta \"Si\" y digitar en la casilla siguiente el número de litros gastados semanalmente."]
[]
[]
[]
[]
[]
[]
[]
[]
[null,null,"AGUA LAVADO TOTAL:"]
[]
[]
[null,null,"B) AGUA LAVADO TOTAL:"]
[]
[]
["Paso 3:                                                                     ",null,null,null,"Fósforo producido diariamente por la granja."]
[]
[null,null,"La cuantificación de la cantidad de fósforo contenido en la porcinaza se puede realizar de dos maneras: con base en la caracterización química de la porcinaza o con base en el peso vivo de los animales teniendo en cuenta el inventario existente en la granja o la capacidad de la misma."]
[]
[]
[]
[null,null,"El primer paso consiste en responder al simulador la pregunta ¿Realiza caracterización de la porcinaza líquida?; una vez indique SI o NO, el simulador lo guiará para completar la información del cuadro 1 ó 2, según corresponda."]
[]
[]
[null,null,"El cuadro 1 se despliega al responder SI a la pregunta realizada por el simulador; en este se debe ingresar el valor del fósforo total contenido en la porcinaza, el cual debe ser determinado bajo la metodología de Colorimetria; automáticamente el simulador tomará en cuenta el agua de lavado total generado en la granja estimado en el punto 2 para calcular la cantidad de fósforo generado en el sistema."]
[]
[]
[]
[null,null,"En el cuadro 1, item unidades; usted podrá seleccionar las unidades en las cuales viene reportado la concentración de fósforo en el análisis químico de caracterización de la porcinaza."]
[]
[]
[]
[]
[]
[]
[]
[]
[]
[]
[]
[]
[]
[]
[]
[null,null,"En esta fase, el simulador realiza un cálculo teórico de la cantidad de porcinaza generada por la granja durante el día, el cual servirá como base para los cálculos siguientes; en el caso que usted no posea esta información puede estimar la cantidad de fósforo a partir del inventario de animales de su granja respondiendo NO a la pregunta realizada por el formulador ¿Realiza caracterización de la porcinaza líquida?; posterior a esto se mostrará el cuadro de estimación de fósforo producido dia y año según el inventario."]
[]
[]
[]
[null,null,"El simulador procede a realizar el cálculo del fósforo producido diariamente teniendo en cuenta la siguiente fórmula:"]
[]
[null,null,"P producido según grupo etario:"]
[]
[]
[null,null,"El valor de producción fósforo (kg/animal) se extrae del anexo \"Producción de excretas según el estado del animal\", y se pondera según el peso promedio del animal en cada grupo etario, este lo encontrará en la columna PRODUCCIÓN fósforo PONDERADA kg/animal."]
[]
[]
[]
[]
[]
[]
[]
[]
[]
[]
[]
[]
[]
[]
[]
[]
[]
[]
[]
[]
[]
[]
[]
[]
[]
[]
[]
[null,null,"Con valor de referencia se indica en la primera columna la cantidad de fósforo producido diario por cada 100 kilos de peso vivo."]
["Paso 4:                                                                     ",null,null,null,"Área disponible para fertilizar."]
[null,null,"En este paso se busca determinar el área disponible para fertilizar; para esto es necesario que usted incluya el área destinada para la siembra de cultivos que usted tiene en su granja y de igual forma el área  de protección ambiental en el caso de que esta se ubique en la misma zona del área destinada para cultivos; con esta información el simulador le indicará el área total disponible para fertilizar y establecer cultivos.\n"]
[]
[]
[]
[]
[]
[]
[]
[]
[]
[]
[]
[]
[]
[]
["Paso 5:                                                                     ",null,null,null,"Necesidades de fósforo del cultivo."]
[null,null,"En este paso se busca determinar la cantidad de fósforo al año requerido por el cultivo a fertilizar, para esto se debe contar con el asesoramiento de un ingeniero agrónomo o un profesional competente que evalué los requerimientos del cultivo, algunos requerimientos se encuentran en los anexos del presente simulador. \n"]
[]
[]
[]
[]
[]
[]
[]
[]
[null,null,"El simulador le da la opción de realizar el plan de fertilización considerando 1, 2 ó 3 cultivos simultáneamente; para lo cual usted debe seleccionar la casilla que sea de su interés."]
[]
[null,null,"Recuerde que usted debe descontar las áreas destinadas a la protección ambiental del área efectiva de siembra de cultivos."]
[]
[]
[]
[]
[]
[]
[]
[]
[]
[]
[]
[]
[]
[]
[]
[]
[]
[]
[]
[]
[]
[]
[]
[]
[]
[]
[null,null,"Para el cálculo es necesario que introduzca o seleccione la siguiente información:"]
[]
[null,null,"a. Nombre de cultivo: Se refiere al nombre del tipo de cultivo que se va a fertilizar, para esto solo debe seleccionar en la lista desplegable el cultivo respectivo."]
[]
[]
[null,null,"b. Área disponible para fertilizar: Es la extensión en hectáreas o metros cuadrados del cultivo a fertilizar, es importante que al realizar la cuantificación de esta área se considere la reducción de las áreas de protección ambiental como rondas hídricas, nacederos, reservas forestales, etc."]
[]
[]
[]
[null,null,"El simulador le permitirá ingresar el área en hectáreas o en metros cuadrados, para esto solo debe seleccionar en la lista desplegable la unidad de área respectiva."]
[]
[]
[null,null,"c. Número de plantas sembradas en toda el área:  Es el número de plantas que se tienen sembradas en toda el área del cultivo."]
[]
[null,null,"d. Ciclo del cultivo (días): Corresponde al total de días que dura el cultivo desde la siembra hasta que se cosecha. En pastos y cultivos perennes se sugiere colocar 365 días."]
[]
[]
[null,null,"e. Frecuencia de aplicación de la porcinaza o tiempo de rotación (días): En cultivos diferentes a pastos se considera la frecuencia de aplicación de la porcinaza como el valor a indicar, el cual hace referencia al número de días que hay entre cada aplicación de porcinaza al cultivo, ej: puede ser cada día, cada 2 días, cada 3 meses, etc.; en cultivos de pastos se considera el tiempo de rotación, considerado como los días que tarda el ganado en ingresar nuevamente al lote."]
[]
[]
[]
[]
[]
[null,null,"f. Requerimiento de fósforo: Corresponde a los kilogramos de fósforo que deben ser aplicados para fertilizar el cultivo, el simulador indicará automáticamente el requerimiento en fósforo por hectárea y por metro cuadrado para cada cultivo."]
[]
[]
[null,null,"En la hoja cultivos encontrará los requerimientos de fósforo que toma el simulador como referencia."]
[null,null,null,null,null,null,null,null,null,null,null,null,null,null,null,null,null,null,null,null,null,null,null,null,null,null,null,null,null,null,null,null,null,"Ver Cultivos."]
[]
[null,null,"g. Cantidad de fósforo a aplicar en toda el área:  Corresponde a los kilogramos de fósforo que deben ser aplicados para fertilizar toda el área del cultivo, el simulador realizará el cálculo automáticamente, indicando el valor en kg/año o kg/ciclo."]
[]
[]
[]
[null,null,"h. Número de aplicaciones de abono durante el ciclo del cultivo:  Es el número de aplicaciones de porcinaza que se harán durante el ciclo del cultivo; en cultivos perennes y pastos se toman 365 días como el ciclo del cultivo."]
[]
[]
[null,null,"i. Número de cortes por año: En pastos, es el número de cortes que se pueden obtener durante 1 año, según los días de rotación."]
[]
[null,null,"j. Cantidad de fósforo a aplicar en cada aplicación:  Corresponde a los kilogramos de fósforo que deben ser aplicados al cultivo en cada aplicación, para esto solo debe seleccionar en la lista desplegable el valor en Kg/ha/aplicación ó Kg/m2/aplicación ó Kg/planta/aplicación; el simulador realizará el calculo automáticamente y mostrará el equivalente en g/ha/aplicación ó g/m2/aplicación ó g/planta/aplicación."]
[]
[]
[]
[]
["Paso 6:                                                                     ",null,null,null,"Análisis de suelos."]
[]
[]
[]
[]
[]
[]
[]
[]
[]
[]
[]
[]
[]
[]
[]
[]
[]
[]
[]
[]
[]
[]
[]
[]
[]
[null,null,"Luego de obtener las cantidades de fósforo requerido por su(s) cultivo(s) es necesario conocer el aporte que hace el suelo de su granja en términos de fósforo al cultivo, para lo cual el simulador incluye el parámetro de análisis químico de suelos en donde debe ingresar la profundidad a la cual tomo la muestra de suelos, las unidades de pH reportado por el análisis, junto con la densidad aparente y el valor de fósforo reportado; junta a esta informacion usted debe seleccionar el nivel critico al cual quiere llevar la concentración de fósforo en el suelo y el tipo de clima que se presenta en su granja, para lo cual puede usar como referencia la información consignada bajo el cuadro 3."]
[]
[]
[]
[]
[]
[null,null,"Una vez ingresada la información el simulador estimará la cantidad de fósforo a aportar al suelo para soportar la producción del cultivo en Kg/ha."]
[]
[]
[null,null,"En el caso de no tener esta informacion el simulador realizará las estimaciones únicamente considerando el requerimiento de fósforo del cultivo, sin considerar el suelo."]
[]
[]
[]
[]
[]
["Paso 7:                                                                     ",null,null,null,"Balance de fósforo."]
[]
[null,null,"En esta fase el simulador relaciona la cantidad de fósforo total requerido por cada cultivo según el área establecida y en el caso de incluirse el análisis de suelos, muestra el aporte de fósforo que realiza el suelo a cada cultivo, por último indicará la cantidad de fósforo total a aplicar para los cultivos establecidos segun el área total sembrada.\nCon base en esto, el simulador realiza un balance del área disponible vs. el área necesitada, y le indicará si sobra o falta área para disponer el fósforo producido en la granja."]
[]
[]
[]
[]
[]
[null,null,"Caso i: Área disponible para fertilizar es mayor al área necesaria:"]
[]
[null,null,"En el siguiente ejemplo es posible observar que el área disponible para fertilizar: 19,1 ha o 191000 m2, es mayor a la superficie necesaria para fertilizar: 6,01 ha ó 601000 m2; es decir sobran 13,09 hectáreas."]
[]
[]
[]
[]
[]
[]
[]
[]
[]
[]
[]
[]
[]
[]
[]
[]
[]
[]
[]
[]
[null,null,"Caso ii: Área disponible para fertilizar es menor al área necesaria:"]
[]
[null,null,"En el ejemplo puede observarse que el área necesaria para fertilizar es de 7,66 ha o 76600 m2 y el área disponible para realizar la fertilización es de 4,3 ha o 43000 m2, es decir hace falta un área de 3,36 ha o 33600 m2 para utilizar la porcinaza líquida sin afectar el ambiente."]
[]
[]
[]
[]
[]
[]
[]
[]
[]
[]
[]
[]
[]
[]
[]
[]
[]
[]
[]
[]
[]
[]
[]
[null,null,"En este caso puede optarse por:"]
[null,null,"- Proveer tierras vecinas con la cantidad adicional de fertilizante."]
[null,null,"- Comprar o arrendar tierras cercanas para fertilizar."]
[null,null,"- Disminuir el inventario de animales de la granja."]
[null,null,"- Asociar con otro tipo de cultivos que presenten mayor requerimiento de fósforo."]
[]
["Paso 8:                                                                     ",null,null,null,"Cantidad de porcinaza líquida total (l/m2 ó l/planta) a aplicar por cultivo."]
[]
[null,null,"En este paso se calcula la cantidad de porcinaza máxima a aplicar por área o por planta para cada cultivo."]
[]
[null,null,"En este paso el simulador indica la cantidad de porcinaza que es necesario aplicar a cada cultivo a fin de suplir su requerimiento nutricional; los valores son dados en l/m2 para cultivos de alta densidad como forrajes o en l/planta para cultivos como café, cítricos, etc."]
[]
[]
[]
[null,null,"Cantidad de porcinaza líquida a aplicar por cultivo:"]
[]
[]
[]
[]
[]
[]
[]
[]
[]
[]
[]
[]
[]
["Paso 9:                                                                     ",null,null,null,"Aplicación de la porcinaza líquida."]
[]
[null,null,"La porcinaza líquida puede aplicarse al suelo de dos formas, mediante el uso de cañones de riego o usando una manguera manejada por un operario; para qué el fertilizante se distribuya de manera homogénea en el cultivo se debe conocer el tiempo que debe durar la aplicación de porcinaza líquida por unidad de superficie."]
[]
[]
[]
[null,null,"El simulador le realizará la pregunta ¿Cómo realiza la aplicación de la porcinaza líquida?; mostrando 3 opciones: Cañon de riego, Manual y Cañon de riego y Manual; si realiza la fertilización con porcinaza líquida por medio de los dos métodos (cañon de riego y manual), seleccione la opción Cañon y manual. Luego se desplegará una opción donde deberá ingresar la cantidad de porcinaza líquida en litros que riega utilizando el cañon de riego y la cantidad que riega manualmente."]
[]
[]
[]
[]
[]
[]
[]
[]
[]
[]
[]
[]
[]
[]
[null,null,"En el caso que la suma de estos valores supere al volumen total de porcinaza a aplicar en el área sembrada por cultivos, el simulador le indicará que debe revisar la información, como se observa en el ejemplo anterior."]
[]
[]
[]
[]
[null,null,"Caso i: Disposición manual con manguera"]
[]
[null,null,"Primero se debe conocer el caudal de la manguera, sin importar si la porcinaza es impulsada por acción de una bomba o por acción de la gravedad. El caudal de descarga puede calcularse si se cuantifica el tiempo total que tarda en llenarse una caneca de 20 litros usando la manguera con porcinaza; el tiempo debe estar en minutos."]
[]
[]
[]
[null,null," Caudal de la manguera (l/min):"]
[]
[]
[]
[]
[]
[]
[]
[]
[]
[]
[]
[]
[]
[]
[]
[]
[]
[]
[]
[]
[]
[]
[]
[]
[]
[]
[null,null,"Posteriormente se debe registrar el tiempo que ha utilizado para aplicar la porcinaza líquida en 15 m2, para esto el operario encargado debe realizar una distribución uniforme de la porcinaza en una franja de un metro de ancho por 5 metros de largo y registrar el tiempo en minutos."]
[]
[]
[]
[null,null,"Tiempo para una franja de 1 m x 15 m :"]
[]
[]
[null,null,"La imagen contigua muestra el cálculo del tiempo para la fertilización manual mediante una manguera, en este caso el operario debería dejar la manguera 3 segundos por metro cuadro, o regar una franja de 1 m x 15 m en 15 segundos."]
[]
[]
[]
[]
[]
[null,null,"Luego el simulador estimará el volumen aplicado de porcinaza en 15 m2 correspondiente al tiempo registrado previamente."]
[]
[null,null,"De igual forma el simulador indicará el tiempo en horas o días que toma regar por cada aplicación los cultivos que fueron considerados en el plan de fertilización."]
[]
[]
[null,null,"Tiempo total utilizado en cada aplicación:"]
[]
[]
[]
[]
[null,null,"Caso i: Cañón de riego"]
[]
[null,null,"El simulador unicamente estimará el riego por cañon para los cultivos de pastos; ya que es en estos donde se implementa este tipo de aplicación."]
[]
[null,null,"El simulador calculará el tiempo necesario para mantener el cañón de riego en cada sitio, para esto es necesario contar con el diámetro del círculo que riega el cañón en cada giro y el caudal de descarga. "]
[]
[]
[null,null,"Área cubierta en cada giro:"]
[]
[]
[]
[]
[]
[]
[]
[]
[]
[]
[]
[]
[]
[]
[]
[]
[]
[]
[]
[]
[]
[]
[]
[]
[]
[]
[]
[]
[]
[]
[]
[]
[]
[]
[]
[]
[null,null,"Cuando se están fertilizando zonas con pendientes altas, cerca a cuerpos de agua o a zonas que no se desean fertilizar, el cañón de riego se programa para no dar giros completos, sino para regar una proporción. Si este es el caso, debe seleccionar la proporción del círculo a regar, para realizar el cálculo."]
[]
[]
[]
[null,null,"Luego de conocer el área cubierta por el cañón de riego, es posible calcular la cantidad de porcinaza que se debe aplicar en cada sitio donde se instala el cañón y el tiempo de descarga del cañon en cada sitio."]
[]
[]
[null,null,"Cantidad de porcinaza por sitio:"]
[]
[]
[null,null,"Tiempo descarga cañón en cada sitio:"]
[]
[]
[null,null,"Por último, el simulador estima el tiempo por aplicación que se requiere para aplicar la porcinaza en cada cultivo, usando la siguiente ecuación:"]
[]
[null,null,"Tiempo total utilizado para regar todo el cultivo durante cada aplicación:"]
[]
[]
[]
[null,null,"En el ejemplo puede observarse que para regar el cultivo 3: Pasto estrella 1 ha, con un cañón de 12 metros de diámetro y que descarga 120 litros por minuto es necesario regar durante 2,2 horas o 132,6 min."]
[]
["RECOMENDACIONES PARTICULARES Y RECOMENDACIONES GENERALES PARA EL CONTROL DEL RIESGO"]
[]
[]
[null,null,"Al final del simulador encontrara un espacio para formular las recomendaciones particualres segun las condciones de la granja y de igual forma se adjuntan las recomendaciones para el manejo agronómico y para el control del riesgo sanitario y ambiental (recursos naturales) en la fertilización con porcinaza líquida."]

{"sheet":"Formato","index":2,"n_rows":433,"n_cols":35,"rows_kept":433,"cut":false,"hidden":false,"merged":[[250,3,251,33],[247,3,247,27],[247,28,247,29],[247,30,247,31],[247,32,247,33],[268,31,268,33],[263,31,263,33],[270,5,270,27],[270,28,270,33],[271,5,271,27],[265,5,265,33],[266,5,266,27],[266,28,266,33],[263,5,263,27],[263,28,263,30],[267,5,267,27],[267,28,267,30],[267,31,267,33],[269,5,269,33],[264,28,264,30],[264,31,264,33],[268,5,268,27],[268,28,268,30],[316,5,316,27],[316,28,316,30],[316,31,316,33],[311,5,311,33],[313,5,313,27],[313,31,313,33],[314,5,314,27],[314,28,314,30],[314,31,314,33],[315,5,315,27],[315,28,315,30],[315,31,315,33],[313,28,313,30],[312,5,312,27],[312,28,312,33],[308,5,308,27],[308,28,308,30],[308,31,308,33],[309,5,309,27],[309,28,309,30],[309,31,309,33],[310,5,310,27],[310,28,310,30],[310,31,310,33],[304,5,304,27],[304,28,304,30],[304,31,304,33],[305,5,305,33],[307,5,307,27],[307,31,307,33],[307,28,307,30],[306,5,306,27],[306,28,306,33],[302,5,302,27],[302,28,302,30],[302,31,302,33],[301,28,301,30],[300,5,300,27],[300,28,300,33],[302,78,302,80],[303,5,303,27],[303,28,303,30],[303,31,303,33],[303,78,303,80],[304,78,304,80],[297,74,297,77],[293,3,293,35],[295,5,295,27],[295,28,295,30],[295,31,295,33],[296,5,296,27],[296,28,296,30],[296,31,296,33],[297,5,297,27],[297,28,297,30],[297,31,297,33],[293,68,293,72],[294,68,294,72],[295,68,295,72],[293,74,293,77],[294,74,294,77],[295,74,295,77],[298,5,298,27],[293,78,293,80],[294,78,294,80],[295,78,295,80],[301,5,301,27],[301,31,301,33],[148,4,150,4],[134,4,135,4],[142,4,142,33],[148,28,150,33],[297,78,297,80],[298,78,298,80],[299,78,299,80],[272,31,272,33],[272,28,272,30],[272,5,272,27],[298,28,298,33],[299,5,299,33],[259,5,259,27],[259,28,259,30],[259,31,259,33],[260,5,260,27],[260,28,260,30],[260,31,260,33],[261,5,261,33],[262,5,262,27],[262,28,262,33],[271,28,271,30],[271,31,271,33],[264,5,264,27],[234,29,235,31],[246,3,246,27],[248,3,248,27],[248,28,248,30],[249,3,249,27],[249,28,249,30],[248,31,248,33],[249,31,249,33],[246,28,246,33],[234,5,235,13],[234,14,235,16],[234,17,235,19],[234,20,235,22],[234,23,235,25],[234,26,235,28],[55,2,55,31],[57,29,57,31],[87,2,87,31],[92,9,94,12],[114,2,114,31],[95,9,96,12],[95,18,96,21],[95,4,96,8],[95,13,96,17],[95,29,96,32],[95,23,96,28],[98,2,99,34],[89,2,90,34],[92,18,94,21],[92,4,94,8],[92,13,94,17],[92,29,94,32],[92,23,94,28],[64,27,64,30],[64,31,64,33],[59,2,59,25],[64,3,64,5],[64,6,64,8],[64,9,64,11],[64,15,64,17],[64,12,64,14],[57,2,57,28],[64,23,64,25],[64,19,64,22],[43,18,43,21],[43,22,43,25],[43,26,43,29],[44,8,44,13],[44,14,44,17],[44,18,44,21],[44,22,44,25],[44,26,44,29],[56,29,56,31],[47,5,47,18],[45,8,45,13],[45,14,45,17],[45,18,45,21],[45,22,45,25],[45,26,45,29],[46,8,46,13],[46,14,46,17],[46,18,46,21],[46,23,46,25],[53,33,53,36],[49,2,49,31],[50,25,50,27],[51,2,51,24],[51,25,51,27],[52,2,52,24],[52,25,52,27],[52,29,52,36],[53,2,53,24],[53,25,53,27],[53,29,53,32],[46,27,46,29],[43,8,43,13],[43,14,43,17],[39,8,39,13],[39,14,39,17],[39,18,39,21],[39,22,39,25],[39,26,39,29],[40,8,40,13],[40,14,40,17],[40,18,40,21],[40,22,40,25],[40,26,40,29],[41,8,41,13],[41,14,41,17],[41,18,41,21],[41,22,41,25],[41,26,41,29],[42,8,42,13],[42,14,42,17],[42,18,42,21],[42,22,42,25],[42,26,42,29],[37,8,37,13],[37,14,37,17],[37,18,37,21],[37,22,37,25],[37,26,37,29],[38,8,38,13],[38,14,38,17],[38,18,38,21],[38,22,38,25],[38,26,38,29],[34,8,36,13],[34,14,36,17],[34,18,36,21],[34,22,36,25],[34,26,36,29],[32,2,32,31],[29,14,29,17],[29,18,29,21],[29,22,29,25],[29,26,29,29],[30,8,30,13],[30,15,30,17],[29,8,29,13],[27,8,27,13],[27,14,27,17],[27,18,27,21],[27,22,27,25],[27,26,27,29],[28,8,28,13],[28,14,28,17],[28,18,28,21],[28,22,28,25],[28,26,28,29],[25,8,25,13],[25,14,25,17],[25,18,25,21],[25,22,25,25],[25,26,25,29],[26,8,26,13],[26,14,26,17],[26,18,26,21],[26,22,26,25],[26,26,26,29],[24,8,24,13],[24,14,24,17],[24,18,24,21],[24,22,24,25],[24,26,24,29],[21,8,21,13],[21,14,21,17],[21,18,21,21],[21,22,21,25],[21,26,21,29],[22,8,22,13],[22,14,22,17],[22,18,22,21],[22,22,22,25],[22,26,22,29],[18,14,20,17],[18,18,20,21],[18,22,18,29],[19,22,20,25],[19,26,20,29],[12,23,12,35],[12,7,12,17],[16,2,16,7],[23,8,23,13],[23,14,23,17],[23,18,23,21],[23,22,23,25],[23,26,23,29],[18,8,20,13],[0,1,0,36],[14,1,14,36],[2,25,2,35],[4,25,4,35],[10,13,10,35],[4,22,4,24],[2,22,2,24],[2,5,2,20],[4,7,4,20],[6,5,6,20],[8,9,8,20],[10,2,10,12],[12,2,12,6],[12,18,12,22],[2,2,2,4],[6,2,6,4],[8,2,8,8],[4,2,4,6],[6,22,6,25],[6,27,6,30],[6,32,6,35],[8,28,8,35],[8,22,8,27],[70,10,70,15],[70,16,70,19],[70,24,70,27],[72,16,72,19],[72,24,72,27],[69,20,69,23],[70,20,70,23],[71,20,71,23],[72,20,72,23],[76,10,76,15],[76,16,76,19],[76,24,76,27],[77,10,77,23],[79,24,80,27],[77,24,77,27],[73,10,73,15],[73,16,73,19],[73,24,73,27],[74,10,74,15],[74,16,74,19],[74,24,74,27],[79,10,80,23],[73,20,73,23],[74,20,74,23],[75,20,75,23],[76,20,76,23],[65,31,65,33],[67,2,67,25],[65,19,65,22],[75,10,75,15],[75,16,75,19],[65,6,65,8],[65,9,65,11],[65,15,65,17],[75,24,75,27],[71,10,71,15],[71,16,71,19],[71,24,71,27],[72,10,72,15],[65,27,65,30],[65,12,65,14],[65,3,65,5],[65,23,65,25],[68,10,68,15],[68,16,68,19],[68,20,68,23],[68,24,68,27],[69,10,69,15],[69,16,69,19],[69,24,69,27],[82,3,83,34],[132,22,132,27],[146,5,146,21],[122,22,122,33],[123,28,123,33],[124,28,124,33],[125,28,125,33],[126,28,128,33],[130,28,130,33],[131,28,131,33],[122,5,122,21],[125,22,125,27],[133,22,133,27],[135,22,135,27],[131,5,131,21],[129,22,129,27],[130,22,130,27],[126,5,126,21],[129,5,129,21],[123,5,123,21],[124,5,124,21],[116,3,116,31],[120,4,120,33],[123,22,123,27],[124,22,124,27],[84,3,84,34],[85,3,85,34],[154,28,154,33],[155,22,155,27],[155,28,155,33],[126,4,128,4],[144,22,144,33],[145,22,145,27],[145,28,145,33],[146,22,146,27],[146,28,146,33],[147,22,147,27],[151,22,151,27],[151,28,151,33],[151,5,151,21],[147,28,147,33],[132,28,132,33],[133,28,133,33],[129,28,129,33],[134,28,134,33],[135,28,135,33],[144,5,144,21],[132,5,132,21],[165,4,167,4],[165,5,165,21],[163,22,163,27],[163,28,163,33],[165,28,167,33],[153,5,153,21],[154,5,154,21],[152,5,152,21],[152,22,152,27],[152,28,152,33],[153,22,153,27],[153,28,153,33],[162,22,162,27],[162,28,162,33],[159,4,159,33],[156,4,157,4],[156,22,156,27],[156,28,156,33],[157,28,157,33],[161,22,161,33],[161,5,161,21],[162,5,162,21],[165,22,167,27],[166,5,167,21],[169,22,169,27],[163,5,163,21],[164,5,164,21],[164,22,164,27],[164,28,164,33],[155,5,155,21],[156,5,156,21],[157,5,157,21],[154,22,154,27],[133,5,133,21],[134,5,134,21],[125,5,125,21],[157,22,157,27],[134,22,134,27],[126,22,128,27],[131,22,131,27],[130,5,130,21],[127,5,128,21],[149,5,150,21],[148,5,148,21],[148,22,150,27],[135,5,135,21],[145,5,145,21],[147,5,147,21],[213,5,214,13],[203,17,203,19],[203,25,203,28],[203,29,203,31],[199,3,199,7],[200,3,200,7],[202,21,202,23],[203,21,203,23],[200,9,200,12],[200,13,200,15],[200,17,200,19],[173,4,174,4],[173,22,173,27],[173,28,173,33],[174,22,174,27],[174,28,174,33],[215,26,216,31],[213,20,213,25],[213,26,213,31],[168,5,168,21],[169,5,169,21],[168,22,168,27],[168,28,168,33],[169,28,169,33],[174,5,174,21],[172,5,172,21],[173,5,173,21],[170,22,170,27],[170,28,170,33],[171,22,171,27],[171,28,171,33],[172,22,172,27],[172,28,172,33],[170,5,170,21],[171,5,171,21],[221,5,222,13],[221,14,222,31],[214,14,214,19],[214,20,214,25],[213,14,213,19],[214,26,214,31],[215,5,216,13],[190,2,190,31],[191,29,191,31],[192,2,192,28],[192,29,192,31],[194,2,194,25],[199,9,199,12],[199,13,199,15],[199,17,199,19],[203,13,203,16],[202,5,202,8],[202,9,202,11],[202,13,202,16],[202,17,202,19],[202,25,202,28],[202,29,202,31],[204,3,204,33],[211,2,211,31],[230,2,230,31],[232,5,233,13],[232,14,232,19],[232,20,232,25],[232,26,232,31],[233,14,233,19],[224,3,225,14],[224,15,225,18],[224,19,225,29],[224,30,225,33],[226,3,226,25],[226,26,226,29],[226,30,226,33],[233,20,233,25],[233,26,233,31],[432,1,433,36],[435,1,483,36],[217,5,218,13],[217,14,218,19],[217,20,218,25],[217,26,218,31],[219,5,220,13],[219,14,220,19],[219,20,220,25],[219,26,220,31],[417,1,417,22],[416,1,416,22],[256,3,256,35],[258,5,258,27],[258,28,258,30],[258,31,258,33],[243,2,243,31],[395,1,396,36],[390,1,393,36],[386,1,388,36],[382,1,384,36],[379,1,380,36],[364,1,365,36],[361,1,362,36],[358,1,359,36],[354,1,356,36],[425,1,428,36],[423,1,424,36],[420,1,421,36],[418,1,419,36],[415,1,415,36],[409,1,413,36],[404,1,407,36],[401,1,402,36],[398,1,399,36],[352,1,352,36],[347,1,350,36],[342,1,345,36],[338,1,340,36],[334,1,337,36],[331,1,332,36],[328,1,329,36],[199,21,199,23],[200,21,200,23],[199,24,199,26],[200,24,200,26],[200,31,200,33],[199,31,199,33],[199,28,199,30],[200,28,200,30],[209,3,209,33],[208,3,208,33],[207,3,207,33],[206,3,206,33],[205,3,205,33],[215,14,216,19],[215,20,216,25],[203,5,203,8],[203,9,203,11]]}
[null,"DATOS DE LA GRANJA"]
[]
[null,null,"Granja:",null,null,null,null,null,null,null,null,null,null,null,null,null,null,null,null,null,null,null,"Fecha:"]
[]
[null,null,"Departamento:",null,null,null,null,null,null,null,null,null,null,null,null,null,null,null,null,null,null,null,"Municipio:"]
[]
[null,null,"Vereda:",null,null,null,null,null,null,null,null,null,null,null,null,null,null,null,null,null,null,null,"Coordenadas:",null,null,null,"N",null,null,null,null,"W"]
[]
[null,null,"Nombre propietario:",null,null,null,null,null,null,null,null,null,null,null,null,null,null,null,null,null,null,null,"Celular propietario:"]
[]
[null,null,"Jurisdicción autoridad ambiental: "]
[]
[null,null,"Realizado por:",null,null,null,null,null,null,null,null,null,null,null,null,null,null,null,"Revisado por:"]
[]
[null,"Plan de fertilización con porcinaza líquida"]
[]
[null,null,"Datos de entrada"]
[]
[null,null,null,null,null,null,null,null,"GRUPO ETARIO",null,null,null,null,null,"N° \nANIMALES",null,null,null,"PESO ANIMAL\nkg",null,null,null,"CONSUMO DE AGUA LIMPIEZA"]
[null,null,null,null,null,null,null,null,null,null,null,null,null,null,null,null,null,null,null,null,null,null,"Consumo agua l/animal/día",null,null,null,"Periodicidad (días)"]
[]
[null,null,null,null,null,null,null,null,"Hembra reemplazo"]
[null,null,null,null,null,null,null,null,"Hembra vacía"]
[null,null,null,null,null,null,null,null,"Hembra gestante"]
[null,null,null,null,null,null,null,null,"Hembra lactante"]
[null,null,null,null,null,null,null,null,"Macho reproductor"]
[null,null,null,null,null,null,null,null,"Lechón lactante"]
[null,null,null,null,null,null,null,null,"Precebos"]
[null,null,null,null,null,null,null,null,"Levante"]
[null,null,null,null,null,null,null,null,"Ceba"]
[null,null,null,null,null,null,null,null,"TOTAL ANIMALES",null,null,null,null,null,null,{"$f":"+SUM(O22:R30)","v":0}]
[]
[null,null,"Paso 1. Cantidad de porcinaza generada por la granja.*"]
[]
[null,null,null,null,null,null,null,null,"GRUPO ETARIO",null,null,null,null,null,"PORCINAZA PRODUCIDA\n(Kg/día)",null,null,null,"EXCRETA SÓLIDA \nkg/día (55%)",null,null,null,"ORINA\nl/día (45%)",null,null,null,"AGUA LAVADO TOTAL (l/día)"]
[]
[]
[null,null,null,null,null,null,null,null,"Hembra reemplazo",null,null,null,null,null,{"$f":"+IF(($O22*((Anexos!F9*IF($S22=0,150,$S22))/Anexos!E9))=0,\"\",($O22*((Anexos!F9*IF($S22=0,150,$S22))/Anexos!E9)))","v":""},null,null,null,{"$f":"+IF(ISERROR($O38*0.55),\"\",($O38*0.55))","v":""},null,null,null,{"$f":"+IF(ISERROR($O38*0.45),\"\",($O38*0.45))","v":""},null,null,null,{"$f":"+IF($Z52=\"No\",Anexos!D24*$O22,((IF($Z53=\"No\",Anexos!D24,($W22/IF($AA22=0,1,$AA22)))*$O22)))","v":0}]
[null,null,null,null,null,null,null,null,"Hembra vacía",null,null,null,null,null,{"$f":"+IF(($O23*((Anexos!F9*IF($S23=0,160,$S23))/Anexos!E9))=0,\"\",($O23*((Anexos!F9*IF($S23=0,160,$S23))/Anexos!E9)))","v":""},null,null,null,{"$f":"+IF(ISERROR($O39*0.55),\"\",($O39*0.55))","v":""},null,null,null,{"$f":"+IF(ISERROR($O39*0.45),\"\",($O39*0.45))","v":""},null,null,null,{"$f":"+IF($Z52=\"No\",Anexos!D25*$O23,((IF($Z53=\"No\",Anexos!D25,($W23/IF($AA23=0,1,$AA23)))*$O23)))","v":0}]
[null,null,null,null,null,null,null,null,"Hembra gestante",null,null,null,null,null,{"$f":"+IF(($O24*((Anexos!F10*IF($S24=0,180,$S24))/Anexos!E10))=0,\"\",($O24*((Anexos!F10*IF($S24=0,180,$S24))/Anexos!E10)))","v":""},null,null,null,"",null,null,null,"",null,null,null,{"$f":"+IF($Z52=\"No\",Anexos!D25*$O24,((IF($Z53=\"No\",Anexos!D25,($W24/IF($AA24=0,1,$AA24)))*$O24)))","v":0}]
[null,null,null,null,null,null,null,null,"Hembra lactante",null,null,null,null,null,{"$f":"+IF(($O25*((Anexos!F11*IF($S25=0,190,$S25))/Anexos!E11))=0,\"\",($O25*((Anexos!F11*IF($S25=0,190,$S25))/Anexos!E11)))","v":""},null,null,null,"",null,null,null,"",null,null,null,{"$f":"+IF($Z52=\"No\",Anexos!D23*$O25,((IF($Z53=\"No\",Anexos!D23,($W25/IF($AA25=0,1,$AA25)))*$O25)))","v":0}]
[null,null,null,null,null,null,null,null,"Macho reproductor",null,null,null,null,null,{"$f":"+IF(($O26*((Anexos!F12*IF($S26=0,200,$S26))/Anexos!E12))=0,\"\",($O26*((Anexos!F12*IF($S26=0,200,$S26))/Anexos!E12)))","v":""},null,null,null,"",null,null,null,"",null,null,null,{"$f":"+IF($Z52=\"No\",Anexos!D25*$O26,((IF($Z53=\"No\",Anexos!D25,($W26/IF($AA26=0,1,$AA26)))*$O26)))","v":0}]
[null,null,null,null,null,null,null,null,"Lechón lactante",null,null,null,null,null,{"$f":"+IF(($O27*((Anexos!F13*IF($S27=0,7,$S27))/Anexos!E13))=0,\"\",($O27*((Anexos!F13*IF($S27=0,7,$S27))/Anexos!E13)))","v":""},null,null,null,"",null,null,null,"",null,null,null,{"$f":"+IF($Z52=\"No\",Anexos!D26*$O27,((IF($Z53=\"No\",Anexos!D26,($W27/IF($AA27=0,1,$AA27)))*$O27)))","v":0}]
[null,null,null,null,null,null,null,null,"Precebos",null,null,null,null,null,{"$f":"+IF(($O28*((Anexos!F14*IF($S28=0,30,$S28))/Anexos!E14))=0,\"\",($O28*((Anexos!F14*IF($S28=0,30,$S28))/Anexos!E14)))","v":""},null,null,null,"",null,null,null,"",null,null,null,{"$f":"+IF($Z52=\"No\",Anexos!D26*$O28,((IF($Z53=\"No\",Anexos!D26,($W28/IF($AA28=0,1,$AA28)))*$O28)))","v":0}]
[null,null,null,null,null,null,null,null,"Levante",null,null,null,null,null,{"$f":"+IF(($O29*((Anexos!F15*IF($S29=0,60,$S29))/Anexos!E15))=0,\"\",($O29*((Anexos!F15*IF($S29=0,60,$S29))/Anexos!E15)))","v":""},null,null,null,"",null,null,null,"",null,null,null,{"$f":"+IF($Z52=\"No\",Anexos!D27*$O29,((IF($Z53=\"No\",Anexos!D27,($W29/IF($AA29=0,1,$AA29)))*$O29)))","v":0}]
[null,null,null,null,null,null,null,null,"Ceba",null,null,null,null,null,{"$f":"+IF(($O30*((Anexos!F16*IF($S30=0,110,$S30))/Anexos!E16))=0,\"\",($O30*((Anexos!F16*IF($S30=0,110,$S30))/Anexos!E16)))","v":""},null,null,null,"",null,null,null,"",null,null,null,{"$f":"+IF($Z52=\"No\",Anexos!D28*$O30,((IF($Z53=\"No\",Anexos!D28,($W30/IF($AA30=0,1,$AA30)))*$O30)))","v":0}]
[null,null,null,null,null,null,null,null,"TOTAL",null,null,null,null,null,{"$f":"+SUM(O38:R46)","v":0},null,null,null,{"$f":"+SUM(S38:V46)","v":0},null,null,null,"A.",{"$f":"+SUM(W38:Z46)","v":0},null,null,"B.",{"$f":"+IF((Z52=\"No\"),SUM(AA38:AD46),IF(Z53=\"Si\",SUM(AA38:AD46),IF(Z54=\"Si\",AD54/7,SUM(AA38:AD46))))","v":0}]
[null,null,null,null,"*","Tomado de: Guía Ambiental para el subsector porcícola, 2002."]
[]
[null,null,"Paso 2. Cantidad de agua de lavado empleada en el proceso productivo."]
[null,null,null,null,null,null,null,null,null,null,null,null,null,null,null,null,null,null,null,null,null,null,null,null,null,"Si / No â"]
[null,null,"¿Realiza medición del agua de lavado utilizada en la granja?",null,null,null,null,null,null,null,null,null,null,null,null,null,null,null,null,null,null,null,null,null,null,"No"]
[null,null,"¿Realiza medición según grupo etario?",null,null,null,null,null,null,null,null,null,null,null,null,null,null,null,null,null,null,null,null,null,null,"No",null,null,null,"Diligencie el cuadro arriba"]
[null,null,"¿Realiza medición semanal del agua TOTAL de lavado utilizada en la granja?",null,null,null,null,null,null,null,null,null,null,null,null,null,null,null,null,null,null,null,null,null,null,"No",null,null,null,null,null,null,null,"Litros/semana"]
[]
[null,null,"Paso 3. Fósforo producido diariamente por la granja."]
[null,null,null,null,null,null,null,null,null,null,null,null,null,null,null,null,null,null,null,null,null,null,null,null,null,null,null,null,null,"Si/No â"]
[null,null,"¿Realiza caracterización de la porcinaza líquida?",null,null,null,null,null,null,null,null,null,null,null,null,null,null,null,null,null,null,null,null,null,null,null,null,null,null,"Si"]
[]
[null,null,"Cuadro 1. Cantidad de fósforo contenido en la porcinaza generada en la granja."]
[]
[null,null,null,"Diligencie la siguiente información de acuerdo a sus resultados de laboratorio."]
[]
[]
[null,null,null,"Valor de P",null,null,"Unidades",null,null,"P (%)",null,null,"P (ppm)",null,null,"P (Kg/m3)",null,null,null,"Caudal de porcinaza generado.",null,null,null,"Unidades",null,null,null,"Cantidad total de fósforo generado.",null,null,null,"Unidades"]
[null,null,null,null,null,null,"g/l",null,null,{"$f":"IF(IF($G$66=\"%\",$D$66,IF($G$66=\"ppm\",$D$66/10000,IF($G$66=\"g/l\",$D$66/10)))<1,FIXED(IF($G$66=\"%\",$D$66,IF($G$66=\"ppm\",$D$66/10000,IF($G$66=\"g/l\",$D$66/10))),2,FALSE),FIXED(IF($G$66=\"%\",$D$66,IF($G$66=\"ppm\",$D$66/10000,IF($G$66=\"g/l\",$D$66/10))),1,FALSE))","v":"0,00"},null,null,{"$f":"IF(IF($G$66=\"ppm\",$D$66,IF($G$66=\"%\",$D$66*10000,IF($G$66=\"g/l\",$D$66/0.001)))<1,FIXED(IF($G$66=\"ppm\",$D$66,IF($G$66=\"%\",$D$66*10000,IF($G$66=\"g/l\",$D$66/0.001))),2,FALSE),FIXED(IF($G$66=\"ppm\",$D$66,IF($G$66=\"%\",$D$66*10000,IF($G$66=\"g/l\",$D$66/0.001))),0,FALSE))","v":"0,00"},null,null,{"$f":"IF(IF($G$66=\"g/l\",$D$66,IF($G$66=\"ppm\",$D$66*0.001,IF($G$66=\"%\",$D$66*10)))<1,FIXED(IF($G$66=\"g/l\",$D$66,IF($G$66=\"ppm\",$D$66*0.001,IF($G$66=\"%\",$D$66*10))),2,FALSE),FIXED(IF($G$66=\"g/l\",$D$66,IF($G$66=\"ppm\",$D$66*0.001,IF($G$66=\"%\",$D$66*10))),1,FALSE))","v":"0,00"},null,null,null,{"$f":"IF(X66=\"l/día\",(AB47+X47),((AB47+X47)/1000))","v":0},null,null,null,"l/día",null,null,null,{"$f":"IF($X$66=\"l/día\",(P66/1000)*T66,IF($X$66=\"m3/día\",T66*P66))","v":0},null,null,null,"kg/día"]
[]
[null,null,"Cuadro 2. Producción de fósforo diario por grupo etario."]
[null,null,null,null,null,null,null,null,null,null,"GRUPO ETARIO",null,null,null,null,null,"PRODUCCIÓN FÓSFORO*\n(Kg/día)\npor cada 100 kg de peso vivo",null,null,null,"PRODUCCIÓN\nDE FÓSFORO**\n(Kg/l de porcinaza/día)",null,null,null,"PRODUCCIÓN TOTAL FÓSFORO\n(Kg/dia)"]
[null,null,null,null,null,null,null,null,null,null,"Hembra reemplazo",null,null,null,null,null,{"$f":"Anexos!H38*100/Anexos!C38","v":1.6E-2},null,null,null,{"$f":"(Anexos!H38/Anexos!D38)","v":4.7619047619047615E-3},null,null,null,{"$f":"IF(ISERROR(U70*(W38+AA38)),0,U70*(W38+AA38))","v":0}]
[null,null,null,null,null,null,null,null,null,null,"Hembra vacía",null,null,null,null,null,{"$f":"Anexos!H38*100/Anexos!C38","v":1.6E-2},null,null,null,{"$f":"(Anexos!H38/Anexos!D38)","v":4.7619047619047615E-3},null,null,null,{"$f":"IF(ISERROR(U71*(W39+AA39)),0,U71*(W39+AA39))","v":0}]
[null,null,null,null,null,null,null,null,null,null,"Hembra gestante",null,null,null,null,null,{"$f":"Anexos!H38*100/Anexos!C38","v":1.6E-2},null,null,null,{"$f":"(Anexos!H38/Anexos!D38)","v":4.7619047619047615E-3},null,null,null,0]
[null,null,null,null,null,null,null,null,null,null,"Hembra lactante 1",null,null,null,null,null,{"$f":"Anexos!H39*100/Anexos!C39","v":4.7058823529411764E-2},null,null,null,{"$f":"(Anexos!H39/Anexos!D39)","v":5.2980132450331126E-3},null,null,null,0]
[null,null,null,null,null,null,null,null,null,null,"Macho reproductor",null,null,null,null,null,{"$f":"Anexos!H40*100/Anexos!C40","v":1.8867924528301886E-2},null,null,null,{"$f":"(Anexos!H40/Anexos!D40)","v":5.6603773584905656E-3},null,null,null,0]
[null,null,null,null,null,null,null,null,null,null,"Precebos",null,null,null,null,null,{"$f":"Anexos!H35*100/Anexos!C35","v":6.25E-2},null,null,null,{"$f":"(Anexos!H35/Anexos!D35)","v":0.01},null,null,null,{"$f":"IF(ISERROR(U75*(W44+AA44)),0,U75*(W44+AA44))","v":0}]
[null,null,null,null,null,null,null,null,null,null,"Levante",null,null,null,null,null,{"$f":"Anexos!H36*100/Anexos!C36","v":3.4482758620689655E-2},null,null,null,{"$f":"(Anexos!H36/Anexos!D36)","v":5.5555555555555558E-3},null,null,null,{"$f":"IF(ISERROR(U76*(W45+AA45)),0,U76*(W45+AA45))","v":0}]
[null,null,null,null,null,null,null,null,null,null,"Ceba",null,null,null,null,null,{"$f":"Anexos!H37*100/Anexos!C37","v":2.9411764705882353E-2},null,null,null,{"$f":"(Anexos!H37/Anexos!D37)","v":4.6511627906976744E-3},null,null,null,0]
[null,null,null,null,null,null,null,null,null,null,"Total fósforo (Kg/día)",null,null,null,null,null,null,null,null,null,null,null,null,null,{"$f":"SUM(Y70:AB77)","v":0}]
[]
[null,null,null,null,null,null,null,null,null,null,"Total fósforo producido (kg/año)",null,null,null,null,null,null,null,null,null,null,null,null,null,{"$f":"IF(AD58=\"NO\",Y78*365,AB66*365)","v":0}]
[]
[]
[null,null,"*","Tomado de: Recomendaciones Técnicas para la Gestión Ambiental en el Manejo de Purines de la Explotación Porcina - Instituto de Investigaciones Agropecuarias, Ministerio de Agricultura - Chile, 2005."]
[]
[null,null,"**","Ponderada según el peso promedio en la granja"]
[null,null,1,"Se incluye la producción de fosfóro de la camada."]
[]
[null,null,"Paso 4. Área disponible para fertilizar."]
[]
[null,null," Tenga en cuenta que en el área a fertilizar se debe considerar la reducción de las áreas de protección ambiental (ronda hídrica, nacedero, reserva forestal)."]
[]
[null,null,null,null,null,null,null,null,null,null,null,null,null,null,null,null,null,null,null,null,null,null,null,null,null,null,null,null,null,null,null,null,{"$f":"+FIXED(IF(AD96=\"Hectáreas\",X96,X96*0.0001),4,TRUE)","v":"0,0000"}]
[null,null,null,null,"Área destinada para la siembra de cultivos.",null,null,null,null,"Unidades",null,null,null,"Área de ronda hidrica y reserva forestal.",null,null,null,null,"Unidades",null,null,null,null,"Área total disponible para fertilizar.",null,null,null,null,null,"Unidades"]
[]
[]
[null,null,null,null,null,null,null,null,null,"Hectáreas",null,null,null,0,null,null,null,null,"Hectáreas",null,null,null,null,{"$f":"+FIXED(IF(AD96=\"Hectáreas\",(IF(J96=\"Hectáreas\",E96*10000,E96)-(IF(S96=\"Hectáreas\",N96*10000,N96)))*0.0001,(IF(J96=\"Hectáreas\",E96*10000,E96)-(IF(S96=\"Hectáreas\",N96*10000,N96)))),2)","v":"0,00"},null,null,null,null,null,"Hectáreas"]
[]
[]
[null,null,{"$f":"IF(ISERROR(\"Señor porcicultor usted dispone de un área total para fertilizar de \"&X96&\" \"&AD96&\"; es necesario que usted no supere el área reportada.\"),\"\",(\"Señor porcicultor usted dispone de un área total para fertilizar de \"&X96&\" \"&AD96&\"; es necesario que usted no supere el área reportada.\"))","v":"Señor porcicultor usted dispone de un área total para fertilizar de 0,00 Hectáreas; es necesario que usted no supere el área reportada."}]
[]
[]
[]
[]
[]
[]
[]
[]
[]
[]
[]
[]
[]
[]
[]
[null,null,"Paso 5. Necesidades de fósforo del cultivo."]
[]
[null,null,null,"Seleccione la cantidad de cultivos a considerar para la estimación del plan de fertilización:"]
[]
[null,null,null,null,null,null,null,null,true,null,null,{"$f":"+FIXED(IF(AC124=\"Hectáreas (ha)\",W124,W124*0.0001),4,TRUE)","v":"0,0000"},null,null,null,null,null,false,null,{"$f":"+FIXED(IF(AC146=\"Hectáreas (ha)\",W146,W146*0.0001),4,TRUE)","v":"0,0000"},null,null,null,null,null,false,null,null,{"$f":"+FIXED(IF(AC163=\"Hectáreas (ha)\",W163,W163*0.0001),4,TRUE)","v":"0,0000"},{"$f":"SUM(L119+T119+AC119)","v":0}]
[]
[null,null,null,null,"Cultivo 1:"]
[]
[null,null,null,null,"a.","Nombre del cultivo",null,null,null,null,null,null,null,null,null,null,null,null,null,null,null,null,"-Seleccione el cultivo.",null,null,null,null,null,null,null,null,null,null,null,{"$f":"((VLOOKUP(W123,Anexos!B52:L122,11,FALSE)))","v":2}]
[null,null,null,null,"b.","Área disponible para fertilizar",null,null,null,null,null,null,null,null,null,null,null,null,null,null,null,null,null,null,null,null,null,null,"Hectáreas (ha)"]
[null,null,null,null,null,"(seleccione hectáreas o metros cuadrados)",null,null,null,null,null,null,null,null,null,null,null,null,null,null,null,null,{"$f":"+FIXED(IF(AC124=\"Hectáreas (ha)\",W124*10000,W124*0.0001),2,TRUE)","v":"0,00"},null,null,null,null,null,{"$f":"+IF(AC124=\"Hectáreas (ha)\",\"Metros cuadrados (m2)\",\"Hectáreas (ha)\")","v":"Metros cuadrados (m2)"}]
[null,null,null,null,"c.","Número de plantas sembradas en toda el área",null,null,null,null,null,null,null,null,null,null,null,null,null,null,null,null,null,null,null,null,null,null,"Plantas"]
[null,null,null,null,"d.","Ciclo del cultivo (días)",null,null,null,null,null,null,null,null,null,null,null,null,null,null,null,null,null,null,null,null,null,null,"Días"]
[null,null,null,null,null,"(en perennes tome como referencia 365 días, en pastos de rotación tome como referencia los días de re-ingreso al lote)"]
[]
[null,null,null,null,"e.","Frecuencia de aplicación de porcinaza (días)",null,null,null,null,null,null,null,null,null,null,null,null,null,null,null,null,null,null,null,null,null,null,"Días"]
[null,null,null,null,"f.","Requerimiento de fósforo",null,null,null,null,null,null,null,null,null,null,null,null,null,null,null,null,{"$f":"IF((IF(AC131=\"Kg de P /m2\",(VLOOKUP(W123,Anexos!B52:C122,2,FALSE))/10000,(VLOOKUP(W123,Anexos!B52:C122,2,FALSE))))<1,(FIXED((IF(AC131=\"Kg de P /m2\",(VLOOKUP(W123,Anexos!B52:C122,2,FALSE))/10000,(VLOOKUP(W123,Anexos!B52:C122,2,FALSE)))),4,FALSE)),(FIXED((IF(AC131=\"Kg de P /m2\",(VLOOKUP(W123,Anexos!B52:C122,2,FALSE))/10000,(VLOOKUP(W123,Anexos!B52:C122,2,FALSE)))),0,FALSE)))","v":"0"},null,null,null,null,null,"Kg de P /ha"]
[null,null,null,null,"g.","Cantidad de fósforo a aplicar en toda el área",null,null,null,null,null,null,null,null,null,null,null,null,null,null,null,null,{"$f":"IF(W124=\"\",\"\",IF(AC134=\"Cortes\",IF(AC124=\"Hectáreas (ha)\",(VLOOKUP(W123,Anexos!B52:C122,2,FALSE))*W124,IF(AC124=\"Metros cuadrados (m2)\",(VLOOKUP(W123,Anexos!B52:C122,2,FALSE))/10000*W124))*$W$133,IF(AC124=\"Hectáreas (ha)\",(VLOOKUP(W123,Anexos!B52:C122,2,FALSE))*W124,IF(AC124=\"Metros cuadrados (m2)\",(VLOOKUP(W123,Anexos!B52:C122,2,FALSE))/10000*W124))))","v":""},null,null,null,null,null,"Kg/año ó Kg/ciclo"]
[null,null,null,null,"h.","Número de aplicaciones de porcinaza durante el ciclo del cultivo",null,null,null,null,null,null,null,null,null,null,null,null,null,null,null,null,{"$f":"IF(W124=\"\",\"\",IF(ISERR(ROUND(IF($W$127>30,($W$127-30)/$W$130,$W$127/$W$130),0)),\"\",(ROUND(IF($W$127>30,($W$127-30)/$W$130,$W$127/$W$130),0))))","v":""},null,null,null,null,null,"Aplicaciones"]
[null,null,null,null,"i.",{"$f":"IF((VLOOKUP(W123,Anexos!B52:L122,11,FALSE))=1,\"Número de cosechas por año\", \"Número de cortes por año\")","v":"Número de cortes por año"},null,null,null,null,null,null,null,null,null,null,null,null,null,null,null,null,{"$f":"IF(W124=\"\",\"\",ROUND(IF((VLOOKUP(W123,Anexos!B52:L122,11,FALSE))=2,($W$127/W130),(365/$W$127)),0))","v":""},null,null,null,null,null,{"$f":"IF((VLOOKUP(W123,Anexos!B52:L122,11,FALSE))=1,\"Cosechas\",\"Cortes\")","v":"Cortes"}]
[null,null,null,null,"j.","Cantidad de fósforo a aplicar en cada aplicación",null,null,null,null,null,null,null,null,null,null,null,null,null,null,null,null,{"$f":"IF(W124=\"\",\"\",IF(IF((VLOOKUP(W123,Anexos!B52:L122,11,FALSE))=2,IF(AC135=\"Kg/ha/aplicación\",W131,IF(AC135=\"Kg/m2/aplicación\",(W131/W133)/W125)),IF(AC135=\"Kg/ha/aplicación\",W131/W133,IF(AC135=\"Kg/m2/aplicación\",((W131/10000)/W133),(IF(AC135=\"Kg/planta/aplicación\",(IF(AND(W126>0,W126<((IF(AC124=\"Hectáreas (ha)\",W124,W124*0.0001))*(VLOOKUP(W123,Anexos!B52:D122,3,FALSE)))),((W126*10000/VLOOKUP(W123,Anexos!B52:D122,3,FALSE)*W131)/10000)/W126,IF(W126=0,W131/(VLOOKUP(W123,Anexos!B52:D122,3,FALSE)),IF(W126>((IF(AC124=\"Hectáreas (ha)\",W124,W124*0.0001))*(VLOOKUP(W123,Anexos!B52:D122,3,FALSE))),W132/W126,W132/W126)))/W133))))))<1,FIXED(IF((VLOOKUP(W123,Anexos!B52:L122,11,FALSE))=2,IF(AC135=\"Kg/ha/aplicación\",W131,IF(AC135=\"Kg/m2/aplicación\",(W131/W133)/W125)),IF(AC135=\"Kg/ha/aplicación\",W131/W133,IF(AC135=\"Kg/m2/aplicación\",((W131/10000)/W133),(IF(AC135=\"Kg/planta/aplicación\",(IF(AND(W126>0,W126<((IF(AC124=\"Hectáreas (ha)\",W124,W124*0.0001))*(VLOOKUP(W123,Anexos!B52:D122,3,FALSE)))),((W126*10000/VLOOKUP(W123,Anexos!B52:D122,3,FALSE)*W131)/10000)/W126,IF(W126=0,W131/(VLOOKUP(W123,Anexos!B52:D122,3,FALSE)),IF(W126>((IF(AC124=\"Hectáreas (ha)\",W124,W124*0.0001))*(VLOOKUP(W123,Anexos!B52:D122,3,FALSE))),W132/W126,W132/W126)))/W133)))))),4,FALSE),FIXED(IF((VLOOKUP(W123,Anexos!B52:L122,11,FALSE))=2,IF(AC135=\"Kg/ha/aplicación\",W131,IF(AC135=\"Kg/m2/aplicación\",(W131/W133)/W125)),IF(AC135=\"Kg/ha/aplicación\",W131/W133,IF(AC135=\"Kg/m2/aplicación\",((W131/10000)/W133),(IF(AC135=\"Kg/planta/aplicación\",(IF(AND(W126>0,W126<((IF(AC124=\"Hectáreas (ha)\",W124,W124*0.0001))*(VLOOKUP(W123,Anexos!B52:D122,3,FALSE)))),((W126*10000/VLOOKUP(W123,Anexos!B52:D122,3,FALSE)*W131)/10000)/W126,IF(W126=0,W131/(VLOOKUP(W123,Anexos!B52:D122,3,FALSE)),IF(W126>((IF(AC124=\"Hectáreas (ha)\",W124,W124*0.0001))*(VLOOKUP(W123,Anexos!B52:D122,3,FALSE))),W132/W126,W132/W126)))/W133)))))),1,FALSE)))","v":""},null,null,null,null,null,"Kg/ha/aplicación"]
[null,null,null,null,null,"(seleccione Kg/ha/aplicación ó Kg/m2/aplicación ó Kg/planta/aplicación.)",null,null,null,null,null,null,null,null,null,null,null,null,null,null,null,null,{"$f":"IF(W124=\"\",\"\",IF(IF(ISERROR(W135*1000),\"\",W135*1000)<1,FIXED(IF(ISERROR(W135*1000),\"\",W135*1000),4,FALSE),FIXED(IF(ISERROR(W135*1000),\"\",W135*1000),0,FALSE)))","v":""},null,null,null,null,null,{"$f":"+IF(AC135=\"Kg/ha/aplicación\",\"g/ha/aplicación\",IF(AC135=\"Kg/m2/aplicación\",\"g/m2/aplicación\",\"g/planta/aplicación\"))","v":"g/ha/aplicación"}]
[]
[]
[]
[]
[]
[]
[null,null,null,null,"Cultivo 2:"]
[]
[null,null,null,null,"a.","Nombre del cultivo",null,null,null,null,null,null,null,null,null,null,null,null,null,null,null,null,"",null,null,null,null,null,null,null,null,null,null,null,{"$f":"((VLOOKUP(W145,Anexos!B52:L122,11,FALSE)))","v":{"$error":"#N/A"}}]
[null,null,null,null,"b.","Área disponible para fertilizar",null,null,null,null,null,null,null,null,null,null,null,null,null,null,null,null,null,null,null,null,null,null,"Hectáreas (ha)"]
[null,null,null,null,null,"(seleccione hectáreas o metros cuadrados)",null,null,null,null,null,null,null,null,null,null,null,null,null,null,null,null,{"$f":"+FIXED(IF(AC146=\"Hectáreas (ha)\",W146*10000,W146*0.0001),2,TRUE)","v":"0,00"},null,null,null,null,null,{"$f":"+IF(AC146=\"Hectáreas (ha)\",\"Metros cuadrados (m2)\",\"Hectáreas (ha)\")","v":"Metros cuadrados (m2)"}]
[null,null,null,null,"c.","Número de plantas sembradas en toda el área",null,null,null,null,null,null,null,null,null,null,null,null,null,null,null,null,296000,null,null,null,null,null,"Plantas"]
[null,null,null,null,"d.","Ciclo del cultivo (días)",null,null,null,null,null,null,null,null,null,null,null,null,null,null,null,null,365,null,null,null,null,null,"Días"]
[null,null,null,null,null,"(en perennes tome como referencia 365 días, en pastos de rotación tome como referencia los días de re-ingreso al lote)"]
[]
[null,null,null,null,"e.","Frecuencia de aplicación de porcinaza (días)",null,null,null,null,null,null,null,null,null,null,null,null,null,null,null,null,7,null,null,null,null,null,"Días"]
[null,null,null,null,"f.","Requerimiento de fósforo",null,null,null,null,null,null,null,null,null,null,null,null,null,null,null,null,{"$f":"IF((IF(AC153=\"Kg de P /m2\",(VLOOKUP(W145,Anexos!B52:C122,2,FALSE))/10000,(VLOOKUP(W145,Anexos!B52:C122,2,FALSE))))<1,(FIXED((IF(AC153=\"Kg de P /m2\",(VLOOKUP(W145,Anexos!B52:C122,2,FALSE))/10000,(VLOOKUP(W145,Anexos!B52:C122,2,FALSE)))),4,FALSE)),(FIXED((IF(AC153=\"Kg de P /m2\",(VLOOKUP(W145,Anexos!B52:C122,2,FALSE))/10000,(VLOOKUP(W145,Anexos!B52:C122,2,FALSE)))),0,FALSE)))","v":{"$error":"#N/A"}},null,null,null,null,null,"Kg de P /ha"]
[null,null,null,null,"g.","Cantidad de fósforo a aplicar en toda el área",null,null,null,null,null,null,null,null,null,null,null,null,null,null,null,null,{"$f":"IF(W146=\"\",\"\",IF(AC156=\"Cortes\",IF(AC146=\"Hectáreas (ha)\",(VLOOKUP(W145,Anexos!B52:C122,2,FALSE))*W146,IF(AC146=\"Metros cuadrados (m2)\",(VLOOKUP(W145,Anexos!B52:C122,2,FALSE))/10000*W146))*$W$155,IF(AC146=\"Hectáreas (ha)\",(VLOOKUP(W145,Anexos!B52:C122,2,FALSE))*W146,IF(AC146=\"Metros cuadrados (m2)\",(VLOOKUP(W145,Anexos!B52:C122,2,FALSE))/10000*W146))))","v":""},null,null,null,null,null,"Kg/año ó Kg/ciclo"]
[null,null,null,null,"h.","Número de aplicaciones de porcinaza durante el ciclo del cultivo",null,null,null,null,null,null,null,null,null,null,null,null,null,null,null,null,{"$f":"IF(W146=\"\",\"\",IF(ISERR(ROUND(IF($W$149>30,($W$149-30)/$W$152,$W$149/$W$152),0)),\"\",(ROUND(IF($W$149>30,($W$149-30)/$W$152,$W$149/$W$152),0))))","v":""},null,null,null,null,null,"Aplicaciones"]
[null,null,null,null,"i.",{"$f":"IF((VLOOKUP(W145,Anexos!B52:L122,11,FALSE))=1,\"Número de cosechas por año\", \"Número de cortes por año\")","v":{"$error":"#N/A"}},null,null,null,null,null,null,null,null,null,null,null,null,null,null,null,null,{"$f":"IF(W146=\"\",\"\",ROUND(IF((VLOOKUP(W145,Anexos!B52:L122,11,FALSE))=2,($W$149/W152),(365/$W$149)),0))","v":""},null,null,null,null,null,{"$f":"IF((VLOOKUP(W145,Anexos!B52:L122,11,FALSE))=1,\"Cosechas\",\"Cortes\")","v":{"$error":"#N/A"}}]
[null,null,null,null,"j.","Cantidad de fósforo a aplicar en cada aplicación",null,null,null,null,null,null,null,null,null,null,null,null,null,null,null,null,{"$f":"IF(W146=\"\",\"\",IF(IF((VLOOKUP(W145,Anexos!B52:L122,11,FALSE))=2,IF(AC157=\"Kg/ha/aplicación\",W153,IF(AC157=\"Kg/m2/aplicación\",(W153/W155)/W147)),IF(AC157=\"Kg/ha/aplicación\",W153/W155,IF(AC157=\"Kg/m2/aplicación\",((W153/10000)/W155),(IF(AC157=\"Kg/planta/aplicación\",(IF(AND(W148>0,W148<((IF(AC146=\"Hectáreas (ha)\",W146,W146*0.0001))*(VLOOKUP(W145,Anexos!B52:D122,3,FALSE)))),((W148*10000/VLOOKUP(W145,Anexos!B52:D122,3,FALSE)*W153)/10000)/W148,IF(W148=0,W153/(VLOOKUP(W145,Anexos!B52:D122,3,FALSE)),IF(W148>((IF(AC146=\"Hectáreas (ha)\",W146,W146*0.0001))*(VLOOKUP(W145,Anexos!B52:D122,3,FALSE))),W154/W148,W154/W148)))/W155))))))<1,FIXED(IF((VLOOKUP(W145,Anexos!B52:L122,11,FALSE))=2,IF(AC157=\"Kg/ha/aplicación\",W153,IF(AC157=\"Kg/m2/aplicación\",(W153/W155)/W147)),IF(AC157=\"Kg/ha/aplicación\",W153/W155,IF(AC157=\"Kg/m2/aplicación\",((W153/10000)/W155),(IF(AC157=\"Kg/planta/aplicación\",(IF(AND(W148>0,W148<((IF(AC146=\"Hectáreas (ha)\",W146,W146*0.0001))*(VLOOKUP(W145,Anexos!B52:D122,3,FALSE)))),((W148*10000/VLOOKUP(W145,Anexos!B52:D122,3,FALSE)*W153)/10000)/W148,IF(W148=0,W153/(VLOOKUP(W145,Anexos!B52:D122,3,FALSE)),IF(W148>((IF(AC146=\"Hectáreas (ha)\",W146,W146*0.0001))*(VLOOKUP(W145,Anexos!B52:D122,3,FALSE))),W154/W148,W154/W148)))/W155)))))),4,FALSE),FIXED(IF((VLOOKUP(W145,Anexos!B52:L122,11,FALSE))=2,IF(AC157=\"Kg/ha/aplicación\",W153,IF(AC157=\"Kg/m2/aplicación\",(W153/W155)/W147)),IF(AC157=\"Kg/ha/aplicación\",W153/W155,IF(AC157=\"Kg/m2/aplicación\",((W153/10000)/W155),(IF(AC157=\"Kg/planta/aplicación\",(IF(AND(W148>0,W148<((IF(AC146=\"Hectáreas (ha)\",W146,W146*0.0001))*(VLOOKUP(W145,Anexos!B52:D122,3,FALSE)))),((W148*10000/VLOOKUP(W145,Anexos!B52:D122,3,FALSE)*W153)/10000)/W148,IF(W148=0,W153/(VLOOKUP(W145,Anexos!B52:D122,3,FALSE)),IF(W148>((IF(AC146=\"Hectáreas (ha)\",W146,W146*0.0001))*(VLOOKUP(W145,Anexos!B52:D122,3,FALSE))),W154/W148,W154/W148)))/W155)))))),1,FALSE)))","v":""},null,null,null,null,null,"Kg/m2/aplicación"]
[null,null,null,null,null,"(seleccione Kg/ha/aplicación ó Kg/m2/aplicación ó Kg/planta/aplicación.)",null,null,null,null,null,null,null,null,null,null,null,null,null,null,null,null,{"$f":"IF(W146=\"\",\"\",IF(IF(ISERROR(W157*1000),\"\",W157*1000)<1,FIXED(IF(ISERROR(W157*1000),\"\",W157*1000),4,FALSE),FIXED(IF(ISERROR(W157*1000),\"\",W157*1000),0,FALSE)))","v":""},null,null,null,null,null,{"$f":"+IF(AC157=\"Kg/ha/aplicación\",\"g/ha/aplicación\",IF(AC157=\"Kg/m2/aplicación\",\"g/m2/aplicación\",\"g/planta/aplicación\"))","v":"g/m2/aplicación"}]
[]
[null,null,null,null,"Cultivo 3:"]
[]
[null,null,null,null,"a.","Nombre del cultivo",null,null,null,null,null,null,null,null,null,null,null,null,null,null,null,null,"",null,null,null,null,null,null,null,null,null,null,null,{"$f":"((VLOOKUP(W162,Anexos!B52:L122,11,FALSE)))","v":{"$error":"#N/A"}}]
[null,null,null,null,"b.","Área disponible para fertilizar",null,null,null,null,null,null,null,null,null,null,null,null,null,null,null,null,null,null,null,null,null,null,"Hectáreas (ha)"]
[null,null,null,null,null,"(seleccione hectáreas o metros cuadrados)",null,null,null,null,null,null,null,null,null,null,null,null,null,null,null,null,{"$f":"+FIXED(IF(AC163=\"Hectáreas (ha)\",W163*10000,W163*0.0001),2,TRUE)","v":"0,00"},null,null,null,null,null,{"$f":"+IF(AC163=\"Hectáreas (ha)\",\"Metros cuadrados (m2)\",\"Hectáreas (ha)\")","v":"Metros cuadrados (m2)"}]
[null,null,null,null,"c.","Número de plantas sembradas en toda el área",null,null,null,null,null,null,null,null,null,null,null,null,null,null,null,null,null,null,null,null,null,null,"Plantas"]
[null,null,null,null,"d.","Ciclo del cultivo (días)",null,null,null,null,null,null,null,null,null,null,null,null,null,null,null,null,null,null,null,null,null,null,"Días"]
[null,null,null,null,null,"(en perennes tome como referencia 365 días, en pastos de rotación tome como referencia los días de re-ingreso al lote)"]
[]
[null,null,null,null,"e.","Frecuencia de aplicación de porcinaza (días)",null,null,null,null,null,null,null,null,null,null,null,null,null,null,null,null,null,null,null,null,null,null,"Días"]
[null,null,null,null,"f.","Requerimiento de fósforo",null,null,null,null,null,null,null,null,null,null,null,null,null,null,null,null,{"$f":"IF((IF(AC170=\"Kg de P /m2\",(VLOOKUP(W162,Anexos!B52:C122,2,FALSE))/10000,(VLOOKUP(W162,Anexos!B52:C122,2,FALSE))))<1,(FIXED((IF(AC170=\"Kg de P /m2\",(VLOOKUP(W162,Anexos!B52:C122,2,FALSE))/10000,(VLOOKUP(W162,Anexos!B52:C122,2,FALSE)))),4,FALSE)),(FIXED((IF(AC170=\"Kg de P /m2\",(VLOOKUP(W162,Anexos!B52:C122,2,FALSE))/10000,(VLOOKUP(W162,Anexos!B52:C122,2,FALSE)))),0,FALSE)))","v":{"$error":"#N/A"}},null,null,null,null,null,"Kg de P /ha"]
[null,null,null,null,"g.","Cantidad de fósforo a aplicar en toda el área",null,null,null,null,null,null,null,null,null,null,null,null,null,null,null,null,{"$f":"IF(W163=\"\",\"\",IF(AC173=\"Cortes\",IF(AC163=\"Hectáreas (ha)\",(VLOOKUP(W162,Anexos!B52:C122,2,FALSE))*W163,IF(AC163=\"Metros cuadrados (m2)\",(VLOOKUP(W162,Anexos!B52:C122,2,FALSE))/10000*W163))*$W$172,IF(AC163=\"Hectáreas (ha)\",(VLOOKUP(W162,Anexos!B52:C122,2,FALSE))*W163,IF(AC163=\"Metros cuadrados (m2)\",(VLOOKUP(W162,Anexos!B52:C122,2,FALSE))/10000*W163))))","v":""},null,null,null,null,null,"Kg/año ó Kg/ciclo"]
[null,null,null,null,"h.","Número de aplicaciones de porcinaza durante el ciclo del cultivo",null,null,null,null,null,null,null,null,null,null,null,null,null,null,null,null,{"$f":"IF(W163=\"\",\"\",IF(ISERR(ROUND(IF($W$166>30,($W$166-30)/$W$169,$W$166/$W$169),0)),\"\",(ROUND(IF($W$166>30,($W$166-30)/$W$169,$W$166/$W$169),0))))","v":""},null,null,null,null,null,"Aplicaciones"]
[null,null,null,null,"i.",{"$f":"IF((VLOOKUP(W162,Anexos!B52:L122,11,FALSE))=1,\"Número de cosechas por año\", \"Número de cortes por año\")","v":{"$error":"#N/A"}},null,null,null,null,null,null,null,null,null,null,null,null,null,null,null,null,{"$f":"IF(W163=\"\",\"\",ROUND(IF((VLOOKUP(W162,Anexos!B52:L122,11,FALSE))=2,($W$166/W169),(365/$W$166)),0))","v":""},null,null,null,null,null,{"$f":"IF((VLOOKUP(W162,Anexos!B52:L122,11,FALSE))=1,\"Cosechas\",\"Cortes\")","v":{"$error":"#N/A"}}]
[null,null,null,null,"j.","Cantidad de fósforo a aplicar en cada aplicación",null,null,null,null,null,null,null,null,null,null,null,null,null,null,null,null,{"$f":"IF(W163=\"\",\"\",IF(IF((VLOOKUP(W162,Anexos!B52:L122,11,FALSE))=2,IF(AC174=\"Kg/ha/aplicación\",W170,IF(AC174=\"Kg/m2/aplicación\",(W170/W172)/W164)),IF(AC174=\"Kg/ha/aplicación\",W170/W172,IF(AC174=\"Kg/m2/aplicación\",((W170/10000)/W172),(IF(AC174=\"Kg/planta/aplicación\",(IF(AND(W165>0,W165<((IF(AC163=\"Hectáreas (ha)\",W163,W163*0.0001))*(VLOOKUP(W162,Anexos!B52:D122,3,FALSE)))),((W165*10000/VLOOKUP(W162,Anexos!B52:D122,3,FALSE)*W170)/10000)/W165,IF(W165=0,W170/(VLOOKUP(W162,Anexos!B52:D122,3,FALSE)),IF(W165>((IF(AC163=\"Hectáreas (ha)\",W163,W163*0.0001))*(VLOOKUP(W162,Anexos!B52:D122,3,FALSE))),W171/W165,W171/W165)))/W172))))))<1,FIXED(IF((VLOOKUP(W162,Anexos!B52:L122,11,FALSE))=2,IF(AC174=\"Kg/ha/aplicación\",W170,IF(AC174=\"Kg/m2/aplicación\",(W170/W172)/W164)),IF(AC174=\"Kg/ha/aplicación\",W170/W172,IF(AC174=\"Kg/m2/aplicación\",((W170/10000)/W172),(IF(AC174=\"Kg/planta/aplicación\",(IF(AND(W165>0,W165<((IF(AC163=\"Hectáreas (ha)\",W163,W163*0.0001))*(VLOOKUP(W162,Anexos!B52:D122,3,FALSE)))),((W165*10000/VLOOKUP(W162,Anexos!B52:D122,3,FALSE)*W170)/10000)/W165,IF(W165=0,W170/(VLOOKUP(W162,Anexos!B52:D122,3,FALSE)),IF(W165>((IF(AC163=\"Hectáreas (ha)\",W163,W163*0.0001))*(VLOOKUP(W162,Anexos!B52:D122,3,FALSE))),W171/W165,W171/W165)))/W172)))))),4,FALSE),FIXED(IF((VLOOKUP(W162,Anexos!B52:L122,11,FALSE))=2,IF(AC174=\"Kg/ha/aplicación\",W170,IF(AC174=\"Kg/m2/aplicación\",(W170/W172)/W164)),IF(AC174=\"Kg/ha/aplicación\",W170/W172,IF(AC174=\"Kg/m2/aplicación\",((W170/10000)/W172),(IF(AC174=\"Kg/planta/aplicación\",(IF(AND(W165>0,W165<((IF(AC163=\"Hectáreas (ha)\",W163,W163*0.0001))*(VLOOKUP(W162,Anexos!B52:D122,3,FALSE)))),((W165*10000/VLOOKUP(W162,Anexos!B52:D122,3,FALSE)*W170)/10000)/W165,IF(W165=0,W170/(VLOOKUP(W162,Anexos!B52:D122,3,FALSE)),IF(W165>((IF(AC163=\"Hectáreas (ha)\",W163,W163*0.0001))*(VLOOKUP(W162,Anexos!B52:D122,3,FALSE))),W171/W165,W171/W165)))/W172)))))),1,FALSE)))","v":""},null,null,null,null,null,"Kg/m2/aplicación"]
[null,null,null,null,null,"(seleccione Kg/ha/aplicación ó Kg/m2/aplicación ó Kg/planta/aplicación.)",null,null,null,null,null,null,null,null,null,null,null,null,null,null,null,null,{"$f":"IF(W163=\"\",\"\",IF(IF(ISERROR(W174*1000),\"\",W174*1000)<1,FIXED(IF(ISERROR(W174*1000),\"\",W174*1000),4,FALSE),FIXED(IF(ISERROR(W174*1000),\"\",W174*1000),0,FALSE)))","v":""},null,null,null,null,null,{"$f":"+IF($AC$174=\"Kg/ha/aplicación\",\"g/ha/aplicación\",IF($AC$174=\"Kg/m2/aplicación\",\"g/m2/aplicación\",\"g/planta/aplicación\"))","v":"g/m2/aplicación"}]
[]
[]
[]
[]
[]
[]
[]
[]
[]
[]
[]
[]
[]
[]
[]
[null,null,"Paso 6. Análisis de suelos."]
[null,null,null,null,null,null,null,null,null,null,null,null,null,null,null,null,null,null,null,null,null,null,null,null,null,null,null,null,null,"Si/No â"]
[null,null,"¿Realiza análisis químico de suelos?",null,null,null,null,null,null,null,null,null,null,null,null,null,null,null,null,null,null,null,null,null,null,null,null,null,null,"Si"]
[]
[null,null,"Cuadro 3. Cantidad de fósforo contenido en el análisis de suelos de su granja.*"]
[]
[null,null,null,"Diligencie la siguiente información de acuerdo a sus resultados de laboratorio."]
[]
[]
[null,null,null,"Tipo de clima",null,null,null,null,null,"Profundidad del muestreo.",null,null,null,"Unidades",null,null,null,"Unidades de pH",null,null,null,"Densidad aparente (Da)",null,null,"Unidades",null,null,null,"Valor de P reportado**",null,null,"Unidades"]
[null,null,null,null,null,null,null,null,null,null,null,null,null,"cm",null,null,null,null,null,null,null,null,null,null,"g/cm3",null,null,null,null,null,null,"ppm\n(mg/kg)"]
[]
[null,null,null,null,null,"Cantidad de P en suelo",null,null,null,"Unidades",null,null,null,"Cantidad de P disponible en suelo",null,null,null,"Unidades",null,null,null,"Nivel critico meta",null,null,null,"Cantidad de P a aportar al suelo",null,null,null,"Unidades"]
[null,null,null,null,null,{"$f":"AC201*((100*100*IF(N201=\"m\",J201,J201/100))*IF(Y201=\"Kg/m3\",V201,V201*1000))/1000000","v":0},null,null,null,"Kg/ha",null,null,null,{"$f":"IF(D201=\"Clima cálido húmedo\",IF(AND(R201>=5.5,R201<6.5),F204*0.06,IF(OR(AND(R201>=5,R201<5.5),AND(R201>=6.5,R201<7)),F204*0.05,IF(OR(AND(R201>=4.5,R201<5),AND(R201>=7.1,R201<8)),F204*0.04,IF((AND(R201>=1,R201<4.5)),F204*0.03)))),IF(D201=\"Clima cálido seco\",IF(AND(R201>=5.5,R201<6.5),F204*0.16,IF(OR(AND(R201>=5,R201<5.5),AND(R201>=6.5,R201<7)),F204*0.15,IF(OR(AND(R201>=4.5,R201<5),AND(R201>=7.1,R201<8)),F204*0.14,IF((AND(R201>=1,R201<4.5)),F204*0.13)))),IF(D201=\"Clima templado húmedo\",IF(AND(R201>=5.5,R201<6.5),F204*0.1,IF(OR(AND(R201>=5,R201<5.5),AND(R201>=6.5,R201<7)),F204*0.09,IF(OR(AND(R201>=4.5,R201<5),AND(R201>=7.1,R201<8)),F204*0.08,IF((AND(R201>=1,R201<4.5)),F204*0.07)))),IF(D201=\"Clima frio húmedo\",IF(AND(R201>=5.5,R201<6.5),F204*0.05,IF(OR(AND(R201>=5,R201<5.5),AND(R201>=6.5,R201<7)),F204*0.04,IF(OR(AND(R201>=4.5,R201<5),AND(R201>=7.1,R201<8)),F204*0.03,IF((AND(R201>=1,R201<4.5)),F204*0.02))))))))","v":false},null,null,null,"Kg/ha",null,null,null,30,null,null,null,{"$f":"IF(V204=40,((40*((100*100*IF(N201=\"m\",J201,J201/100))*IF(Y201=\"Kg/m3\",V201,V201*1000))/1000000)-N204),IF(V204=30,((30*((100*100*IF(N201=\"m\",J201,J201/100))*IF(Y201=\"Kg/m3\",V201,V201*1000))/1000000)-N204),IF(V204=15,((15*((100*100*IF(N201=\"m\",J201,J201/100))*IF(Y201=\"Kg/m3\",V201,V201*1000))/1000000)-N204))))","v":0},null,null,null,"Kg/ha"]
[null,null,null,"Clima frío húmedo: ubicado entre los 2500 y los 3000 m.s.n.m. temperatura media entre 6º a 12ºC y precipitación anual entre 500-1000 mm."]
[null,null,null,"Clima templado húmedo: ubicado entre los 1000 y los 2000 m.s.n.m. temperatura media entre 17º a 24ºC y precipitación anual entre 2000-4000 mm."]
[null,null,null,"Clima cálido húmedo: ubicado entre los 480 y los 1000 m.s.n.m. temperatura media superior a 24ºC y precipitación anual entre 2000-3000 mm."]
[null,null,null,"Clima cálido seco: ubicado entre los 0 y los 1000 m.s.n.m. temperatura media superior a 24ºC y precipitación anual entre 1000-2000 mm."]
[null,null,null,"* Estimaciones basadas en el documento: Osorio, N.W. Manejo de nutrientes en suelos del trópico, Universidad Nacional de Colombia, 339 pag. - Colombia, 2015, y en comunicación personal Walter Osorio, 2017."]
[null,null,null,"** Método de estimación en laboratorio de fósforo: Bray II"]
[]
[null,null,"Paso 7. Balance de fósforo."]
[]
[null,null,null,null,null,"Parámetro",null,null,null,null,null,null,null,null,"Cultivo 1",null,null,null,null,null,"Cultivo 2",null,null,null,null,null,"Cultivo 3"]
[null,null,null,null,null,null,null,null,null,null,null,null,null,null,{"$f":"IF(AND(I119=FALSE,R119=FALSE,Z119=FALSE),\"\",\"\"&(W123)&\"\n para \"&((FIXED(IF(AC124=\"Hectáreas (ha)\",W124,W124/10000),2)))&\" ha.\")","v":"-Seleccione el cultivo.\n para 0,00 ha."},null,null,null,null,null,{"$f":"IF(OR(AND(I119=TRUE,R119=FALSE,Z119=FALSE),(AND(I119=FALSE,R119=FALSE,Z119=FALSE))),\"\",\"\"&(W145)&\" \npara \"&((FIXED(IF(AC146=\"Hectáreas (ha)\",W146,W146/10000),2)))&\" ha.\")","v":""},null,null,null,null,null,{"$f":"IF(OR(AND(I119=TRUE,R119=FALSE,Z119=FALSE),(AND(I119=FALSE,R119=TRUE,Z119=FALSE)),(AND(I119=FALSE,R119=FALSE,Z119=FALSE))),\"\",\"\"&(W162)&\" \npara \"&((FIXED(IF(AC163=\"Hectáreas (ha)\",W163,W163/10000),2)))&\" ha.\")","v":""}]
[null,null,null,null,null,"Requerimiento de fósforo en toda el área del cultivo (Kg/año o Kg/ciclo)",null,null,null,null,null,null,null,null,{"$f":"IF(AND(I119=FALSE,R119=FALSE,Z119=FALSE),\"\",W132)","v":""},null,null,null,null,null,{"$f":"IF(OR(AND(I119=TRUE,R119=FALSE,Z119=FALSE),(AND(I119=FALSE,R119=FALSE,Z119=FALSE))),\"\",W154)","v":""},null,null,null,null,null,{"$f":"IF(OR(AND(I119=TRUE,R119=FALSE,Z119=FALSE),(AND(I119=FALSE,R119=TRUE,Z119=FALSE)),(AND(I119=FALSE,R119=FALSE,Z119=FALSE))),\"\",W171)","v":""}]
[]
[null,null,null,null,null,"Aporte de fósforo del suelo a cada cultivo (kg)",null,null,null,null,null,null,null,null,{"$f":"IF(AD193=\"No\",0,IF(AND(I119=FALSE,R119=FALSE,Z119=FALSE),\"\",N204*(FIXED(IF(AC124=\"Hectáreas (ha)\",W124,W124/10000),4))))","v":0},null,null,null,null,null,{"$f":"IF(AD193=\"No\",0,IF(OR(AND(I119=TRUE,R119=FALSE,Z119=FALSE),(AND(I119=FALSE,R119=FALSE,Z119=FALSE))),\"\",(N204*(FIXED(IF(AC146=\"Hectáreas (ha)\",W146,W146/10000),4)))))","v":""},null,null,null,null,null,{"$f":"IF(AD193=\"No\",0,IF(OR(AND(I119=TRUE,R119=FALSE,Z119=FALSE),(AND(I119=FALSE,R119=TRUE,Z119=FALSE)),(AND(I119=FALSE,R119=FALSE,Z119=FALSE))),\"\",N204*(FIXED(IF(AC163=\"Hectáreas (ha)\",W163,W163/10000),4))))","v":""}]
[]
[null,null,null,null,null,"Cantidad de fósforo a aplicar a cada cultivo (kg)",null,null,null,null,null,null,null,null,{"$f":"IF(O216=\"\",\"\",IF(AND(I119=FALSE,R119=FALSE,Z119=FALSE),\"\", IF(AD193=\"No\",((O216-0)+(0*(FIXED(IF(AC124=\"Hectáreas (ha)\",W124,W124/10000),3)))),((O216-O218)+(Z204*(FIXED(IF(AC124=\"Hectáreas (ha)\",W124,W124/10000),3)))))))","v":""},null,null,null,null,null,{"$f":"IF(U216=\"\",\"\",IF(OR(AND(I119=TRUE,R119=FALSE,Z119=FALSE),(AND(I119=FALSE,R119=FALSE,Z119=FALSE))),\"\", IF(AD193=\"No\",((U216-0)+(0*(FIXED(IF(AC146=\"Hectáreas (ha)\",W146,W146/10000),2)))),((U216-U218)+(Z204*(FIXED(IF(AC146=\"Hectáreas (ha)\",W146,W146/10000),2)))) )))","v":""},null,null,null,null,null,{"$f":"IF(AA216=\"\",\"\",IF(OR(AND(I119=TRUE,R119=FALSE,Z119=FALSE),(AND(I119=FALSE,R119=TRUE,Z119=FALSE)),(AND(I119=FALSE,R119=FALSE,Z119=FALSE))),\"\", IF(AD193=\"No\",((AA216-0)+(0*(FIXED(IF(AC163=\"Hectáreas (ha)\",W163,W163/10000),2)))),((AA216-AA218)+(Z204*(FIXED(IF(AC163=\"Hectáreas (ha)\",W163,W163/10000),2)))))))","v":""}]
[]
[null,null,null,null,null,"Cantidad de fósforo total a aplicar para todos los cultivos (kg)",null,null,null,null,null,null,null,null,{"$f":"SUMIF(O220:AF221,\">0\",O220:AF221)","v":0}]
[]
[null,null,null,null,null,null,null,null,null,null,null,null,null,null,null,null,null,null,null,null,null,null,null,null,null,null,null,null,null,null,{"$f":"SUM(IF(AND(I119=FALSE,R119=FALSE,Z119=FALSE),0,SUM((FIXED(IF(AC124=\"Hectáreas (ha)\",W124,W124/10000),2)))),(IF(OR(AND(I119=TRUE,R119=FALSE,Z119=FALSE),(AND(I119=FALSE,R119=FALSE,Z119=FALSE))),0,(FIXED(IF(AC146=\"Hectáreas (ha)\",W146,W146/10000),2)))),(IF(OR(AND(I119=TRUE,R119=FALSE,Z119=FALSE),(AND(I119=FALSE,R119=TRUE,Z119=FALSE)),(AND(I119=FALSE,R119=FALSE,Z119=FALSE))),0,(FIXED(IF(AC163=\"Hectáreas (ha)\",W163,W163/10000),2)))))","v":0},{"$f":"IF(ISERROR((Y80*(SUM(SUM(IF(AND(I119=FALSE,R119=FALSE,Z119=FALSE),0,SUM((FIXED(IF(AC124=\"Hectáreas (ha)\",W124,W124/10000),2)))),(IF(OR(AND(I119=TRUE,R119=FALSE,Z119=FALSE),(AND(I119=FALSE,R119=FALSE,Z119=FALSE))),0,(FIXED(IF(AC146=\"Hectáreas (ha)\",W146,W146/10000),2)))),(IF(OR(AND(I119=TRUE,R119=FALSE,Z119=FALSE),(AND(I119=FALSE,R119=TRUE,Z119=FALSE)),(AND(I119=FALSE,R119=FALSE,Z119=FALSE))),0,(FIXED(IF(AC163=\"Hectáreas (ha)\",W163,W163/10000),2)))))))/O222)),\"\",(Y80*(SUM(SUM(IF(AND(I119=FALSE,R119=FALSE,Z119=FALSE),0,SUM((FIXED(IF(AC124=\"Hectáreas (ha)\",W124,W124/10000),2)))),(IF(OR(AND(I119=TRUE,R119=FALSE,Z119=FALSE),(AND(I119=FALSE,R119=FALSE,Z119=FALSE))),0,(FIXED(IF(AC146=\"Hectáreas (ha)\",W146,W146/10000),2)))),(IF(OR(AND(I119=TRUE,R119=FALSE,Z119=FALSE),(AND(I119=FALSE,R119=TRUE,Z119=FALSE)),(AND(I119=FALSE,R119=FALSE,Z119=FALSE))),0,(FIXED(IF(AC163=\"Hectáreas (ha)\",W163,W163/10000),2)))))))/O222))","v":""}]
[null,null,null,"ÁREA DISPONIBLE",null,null,null,null,null,null,null,null,null,null,null,{"$f":"SUM(IF(AND(I119=FALSE,R119=FALSE,Z119=FALSE),0,SUM((FIXED(IF(AC124=\"Hectáreas (ha)\",W124,W124/10000),2)))),(IF(OR(AND(I119=TRUE,R119=FALSE,Z119=FALSE),(AND(I119=FALSE,R119=FALSE,Z119=FALSE))),0,(FIXED(IF(AC146=\"Hectáreas (ha)\",W146,W146/10000),2)))),(IF(OR(AND(I119=TRUE,R119=FALSE,Z119=FALSE),(AND(I119=FALSE,R119=TRUE,Z119=FALSE)),(AND(I119=FALSE,R119=FALSE,Z119=FALSE))),0,(FIXED(IF(AC163=\"Hectáreas (ha)\",W163,W163/10000),2)))))&\" ha.\"","v":"0 ha."},null,null,null,"ÁREA NECESITADA",null,null,null,null,null,null,null,null,null,null,{"$f":"IF(ISERROR(FIXED((Y80*(SUM(SUM(IF(AND(I119=FALSE,R119=FALSE,Z119=FALSE),0,SUM((FIXED(IF(AC124=\"Hectáreas (ha)\",W124,W124/10000),2)))),(IF(OR(AND(I119=TRUE,R119=FALSE,Z119=FALSE),(AND(I119=FALSE,R119=FALSE,Z119=FALSE))),0,(FIXED(IF(AC146=\"Hectáreas (ha)\",W146,W146/10000),2)))),(IF(OR(AND(I119=TRUE,R119=FALSE,Z119=FALSE),(AND(I119=FALSE,R119=TRUE,Z119=FALSE)),(AND(I119=FALSE,R119=FALSE,Z119=FALSE))),0,(FIXED(IF(AC163=\"Hectáreas (ha)\",W163,W163/10000),2))))))))/O222,2,FALSE)&\" ha.\"),\"\",FIXED((Y80*(SUM(SUM(IF(AND(I119=FALSE,R119=FALSE,Z119=FALSE),0,SUM((FIXED(IF(AC124=\"Hectáreas (ha)\",W124,W124/10000),2)))),(IF(OR(AND(I119=TRUE,R119=FALSE,Z119=FALSE),(AND(I119=FALSE,R119=FALSE,Z119=FALSE))),0,(FIXED(IF(AC146=\"Hectáreas (ha)\",W146,W146/10000),2)))),(IF(OR(AND(I119=TRUE,R119=FALSE,Z119=FALSE),(AND(I119=FALSE,R119=TRUE,Z119=FALSE)),(AND(I119=FALSE,R119=FALSE,Z119=FALSE))),0,(FIXED(IF(AC163=\"Hectáreas (ha)\",W163,W163/10000),2))))))))/O222,2,FALSE)&\" ha.\")","v":""}]
[]
[null,null,null,"BALANCE DE ÁREA DISPONIBLE VS. ÁREA NECESITADA.",null,null,null,null,null,null,null,null,null,null,null,null,null,null,null,null,null,null,null,null,null,null,{"$f":"IF(ISERROR(ABS((FIXED((SUM(IF(AND(I119=FALSE,R119=FALSE,Z119=FALSE),0,SUM((FIXED(IF(AC124=\"Hectáreas (ha)\",W124,W124/10000),2)))),IF(OR(AND(I119=TRUE,R119=FALSE,Z119=FALSE),(AND(I119=FALSE,R119=FALSE,Z119=FALSE))),0,(FIXED(IF(AC146=\"Hectáreas (ha)\",W146,W146/10000),2))),IF(OR(AND(I119=TRUE,R119=FALSE,Z119=FALSE),(AND(I119=FALSE,R119=TRUE,Z119=FALSE)),(AND(I119=FALSE,R119=FALSE,Z119=FALSE))),0,(FIXED(IF(AC163=\"Hectáreas (ha)\",W163,W163/10000),2)))))-((Y80*(SUM(IF(AND(I119=FALSE,R119=FALSE,Z119=FALSE),0,SUM((FIXED(IF(AC124=\"Hectáreas (ha)\",W124,W124/10000),2)))),IF(OR(AND(I119=TRUE,R119=FALSE,Z119=FALSE),(AND(I119=FALSE,R119=FALSE,Z119=FALSE))),0,(FIXED(IF(AC146=\"Hectáreas (ha)\",W146,W146/10000),2))),IF(OR(AND(I119=TRUE,R119=FALSE,Z119=FALSE),(AND(I119=FALSE,R119=TRUE,Z119=FALSE)),(AND(I119=FALSE,R119=FALSE,Z119=FALSE))),0,(FIXED(IF(AC163=\"Hectáreas (ha)\",W163,W163/10000),2))))))/O222),2,FALSE))) &\" ha.\"),\"\",(ABS((FIXED((SUM(IF(AND(I119=FALSE,R119=FALSE,Z119=FALSE),0,SUM((FIXED(IF(AC124=\"Hectáreas (ha)\",W124,W124/10000),2)))),IF(OR(AND(I119=TRUE,R119=FALSE,Z119=FALSE),(AND(I119=FALSE,R119=FALSE,Z119=FALSE))),0,(FIXED(IF(AC146=\"Hectáreas (ha)\",W146,W146/10000),2))),IF(OR(AND(I119=TRUE,R119=FALSE,Z119=FALSE),(AND(I119=FALSE,R119=TRUE,Z119=FALSE)),(AND(I119=FALSE,R119=FALSE,Z119=FALSE))),0,(FIXED(IF(AC163=\"Hectáreas (ha)\",W163,W163/10000),2)))))-((Y80*(SUM(IF(AND(I119=FALSE,R119=FALSE,Z119=FALSE),0,SUM((FIXED(IF(AC124=\"Hectáreas (ha)\",W124,W124/10000),2)))),IF(OR(AND(I119=TRUE,R119=FALSE,Z119=FALSE),(AND(I119=FALSE,R119=FALSE,Z119=FALSE))),0,(FIXED(IF(AC146=\"Hectáreas (ha)\",W146,W146/10000),2))),IF(OR(AND(I119=TRUE,R119=FALSE,Z119=FALSE),(AND(I119=FALSE,R119=TRUE,Z119=FALSE)),(AND(I119=FALSE,R119=FALSE,Z119=FALSE))),0,(FIXED(IF(AC163=\"Hectáreas (ha)\",W163,W163/10000),1))))))/O222),2,FALSE))) &\" ha.\"))","v":""},null,null,null,{"$f":"IF(ISERROR(IF(AE224>AF224,\"Sobran\",\"Faltan\")),\"\",IF(AE224>AF224,\"Sobran\",\"Faltan\"))","v":"Faltan"}]
[]
[]
[]
[null,null,"Paso 8.  Cantidad de porcinaza líquida total (l/m2 o l/planta) a aplicar por cultivo."]
[]
[null,null,null,null,null,"Parámetro",null,null,null,null,null,null,null,null,"Cultivo 1",null,null,null,null,null,"Cultivo 2",null,null,null,null,null,"Cultivo 3"]
[null,null,null,null,null,null,null,null,null,null,null,null,null,null,{"$f":"O215","v":"-Seleccione el cultivo.\n para 0,00 ha."},null,null,null,null,null,{"$f":"U215","v":""},null,null,null,null,null,{"$f":"AA215","v":""}]
[null,null,null,null,null,"Cantidad de porcinaza líquida a aplicar por cultivo (l/m2 o l/planta)",null,null,null,null,null,null,null,null,{"$f":"IF(O216=\"\",\"\",IF(AND(I119=FALSE,R119=FALSE,Z119=FALSE),\"\",ROUND((IF(R235=\"l/planta\",IF(W126<=0,(FIXED(((O220/((VLOOKUP(W123,Anexos!B52:L122,3,FALSE))*(IF(AC124=\"Hectáreas (ha)\",W124,W124/10000))))*(X47+AB47))/(IF(AD58=\"SI\",AB66,Y78)),1,TRUE)),IF(W126<=(VLOOKUP(W123,Anexos!B52:L122,3,FALSE)*IF(AC124=\"Hectáreas (ha)\",W124,W124/10000)),((((O220/((VLOOKUP(W123,Anexos!B52:L122,3,FALSE))*(IF(AC124=\"Hectáreas (ha)\",W124,W124/10000))))*(X47+AB47))/IF(AD58=\"SI\",AB66,Y78))),IF(W126>((VLOOKUP(W123,Anexos!B52:L122,3,FALSE)*IF(AC124=\"Hectáreas (ha)\",W124,W124/10000))),((O220/W126)*(X47+AB47))/IF(AD58=\"Si\",AB66,Y78)))),FIXED(((((O220*10000)/(IF(AC124=\"Hectáreas (ha)\",W124*10000,W124)))/10000)*(X47+AB47))/IF(AD58=\"Si\",AB66,Y78),1,TRUE))),1)))","v":""},null,null,{"$f":"IF(O216=\"\",\"\",IF(AND(I119=FALSE,R119=FALSE,Z119=FALSE),\"\",(IF((VLOOKUP(W123,Anexos!B52:L122,10,FALSE))=2,\"l/planta\",\"l/m2\"))))","v":""},null,null,{"$f":"IF(U216=\"\",\"\",IF(OR(AND(I119=TRUE,R119=FALSE,Z119=FALSE),(AND(I119=FALSE,R119=FALSE,Z119=FALSE))),\"\",ROUND((IF(X235=\"l/planta\",IF(W148<=0,(FIXED(((U220/((VLOOKUP(W145,Anexos!B52:L122,3,FALSE))*(IF(AC146=\"Hectáreas (ha)\",W146,W146/10000))))*(X47+AB47))/(IF(AD58=\"SI\",AB66,Y78)),1,TRUE)),IF(W148<=(VLOOKUP(W145,Anexos!B52:L122,3,FALSE)*IF(AC146=\"Hectáreas (ha)\",W146,W146/10000)),((((U220/((VLOOKUP(W145,Anexos!B52:L122,3,FALSE))*(IF(AC146=\"Hectáreas (ha)\",W146,W146/10000))))*(X47+AB47))/IF(AD58=\"SI\",AB66,Y78))),IF(W148>((VLOOKUP(W145,Anexos!B52:L122,3,FALSE)*IF(AC146=\"Hectáreas (ha)\",W146,W146/10000))),((U220/W148)*(X47+AB47))/IF(AD58=\"Si\",AB66,Y78)))),FIXED(((((U220*10000)/(IF(AC146=\"Hectáreas (ha)\",W146*10000,W146)))/10000)*(X47+AB47))/IF(AD58=\"Si\",AB66,Y78),1,TRUE))),1)))","v":""},null,null,{"$f":"IF(U216=\"\",\"\",IF(OR(AND(I119=TRUE,R119=FALSE,Z119=FALSE),(AND(I119=FALSE,R119=FALSE,Z119=FALSE))),\"\",(IF((VLOOKUP(W145,Anexos!B52:L122,10,FALSE))=2,\"l/planta\",\"l/m2\"))))","v":""},null,null,{"$f":"IF(AA216=\"\",\"\",IF(OR(AND(I119=TRUE,R119=FALSE,Z119=FALSE),(AND(I119=FALSE,R119=TRUE,Z119=FALSE)),(AND(I119=FALSE,R119=FALSE,Z119=FALSE))),\"\",ROUND((IF(AD235=\"l/planta\",IF(W165<=0,(FIXED(((AA220/((VLOOKUP(W162,Anexos!B52:L122,3,FALSE))*(IF(AC163=\"Hectáreas (ha)\",W163,W163/10000))))*(X47+AB47))/(IF(AD58=\"SI\",AB66,Y78)),1,TRUE)),IF(W165<=(VLOOKUP(W162,Anexos!B52:L122,3,FALSE)*IF(AC163=\"Hectáreas (ha)\",W163,W163/10000)),((((AA220/((VLOOKUP(W162,Anexos!B52:L122,3,FALSE))*(IF(AC163=\"Hectáreas (ha)\",W163,W163/10000))))*(X47+AB47))/IF(AD58=\"SI\",AB66,Y78))),IF(W165>((VLOOKUP(W162,Anexos!B52:L122,3,FALSE)*IF(AC163=\"Hectáreas (ha)\",W163,W163/10000))),((AA220/W165)*(X47+AB47))/IF(AD58=\"Si\",AB66,Y78)))),FIXED(((((AA220*10000)/(IF(AC163=\"Hectáreas (ha)\",W163*10000,W163)))/10000)*(X47+AB47))/IF(AD58=\"Si\",AB66,Y78),1,TRUE))),1)))","v":""},null,null,{"$f":"IF(AA216=\"\",\"\",IF(OR(AND(I119=TRUE,R119=FALSE,Z119=FALSE),(AND(I119=FALSE,R119=TRUE,Z119=FALSE)),(AND(I119=FALSE,R119=FALSE,Z119=FALSE))),\"\",(IF((VLOOKUP(W162,Anexos!B52:L122,10,FALSE))=2,\"l/planta\",\"l/m2\"))))","v":""}]
[null,null,null,null,{"$f":"IF(IF(AF249=\"m3\",AC249,AC249/1000)+IF(AF250=\"m3\",AC250,AC250/1000)>SUM(AC248:AH248),2,1)","v":1}]
[]
[]
[]
[]
[]
[]
[]
[null,null,"Paso 9.  Aplicación de la porcinaza líquida."]
[]
[]
[null,null,null,"¿Cómo realiza la aplicación de la porcinaza líquida?",null,null,null,null,null,null,null,null,null,null,null,null,null,null,null,null,null,null,null,null,null,null,null,null,"Manual"]
[null,null,null,{"$f":"IF(ISERROR(SUM(AC248:AH248)),\"Según el volumen total de porcinaza a aplicar (\"&\"\"&\" m3), mencione:\",\"Según el volumen total de porcinaza a aplicar (\"&(FIXED(SUM(AC248:AH248),1,TRUE)&\" m3), mencione:\"))","v":"Según el volumen total de porcinaza a aplicar (0,0 m3), mencione:"},null,null,null,null,null,null,null,null,null,null,null,null,null,null,null,null,null,null,null,null,null,null,null,null,{"$f":"IF(ISERROR((((W132)*((X47+AB47)*365))/IF(AD58=\"Si\",AB66*365,Y78*365))/1000),\"\",(((W132)*((X47+AB47)*365))/IF(AD58=\"Si\",AB66*365,Y78*365))/1000)","v":""},null,{"$f":"IF(ISERROR((((W153)*((X47+AB47)*365))/IF(AD58=\"Si\",AB66*365,Y78*365))/1000),\"\",(((W153)*((X47+AB47)*365))/IF(AD58=\"Si\",AB66*365,Y78*365))/1000)","v":""},null,{"$f":"IF(ISERROR((((W170)*((X47+AB47)*365))/IF(AD58=\"Si\",AB66*365,Y78*365))/1000),\"\",(((W170)*((X47+AB47)*365))/IF(AD58=\"Si\",AB66*365,Y78*365))/1000)","v":""}]
[null,null,null,"¿Cuánto riego mediante cañon?",null,null,null,null,null,null,null,null,null,null,null,null,null,null,null,null,null,null,null,null,null,null,null,null,null,null,null,"m3"]
[null,null,null,"¿Cuánto riego mediante manguera?",null,null,null,null,null,null,null,null,null,null,null,null,null,null,null,null,null,null,null,null,null,null,null,null,null,null,null,"litros"]
[null,null,null,{"$f":"\"El volumen de porcinaza registrado, supera (\"&(FIXED((IF(AF249=\"m3\",AC249,AC249/1000)+IF(AF250=\"m3\",AC250,AC250/1000))-SUM(AC248:AH248),1,TRUE)&\") m3, al volumen requerido para fertilizar toda el área sembrada; debe revisar los datos registrados.\")","v":"El volumen de porcinaza registrado, supera (0,0) m3, al volumen requerido para fertilizar toda el área sembrada; debe revisar los datos registrados."}]
[]
[]
[]
[]
[]
[null,null,null,"Aplicación manual"]
[]
[null,null,null,null,"I","Caudal de la manguera",null,null,null,null,null,null,null,null,null,null,null,null,null,null,null,null,null,null,null,null,null,null,null,null,null,"l/min."]
[null,null,null,null,"II","Tiempo utilizado para aplicar la porcinaza en 15 m2",null,null,null,null,null,null,null,null,null,null,null,null,null,null,null,null,null,null,null,null,null,null,null,null,null,"min."]
[null,null,null,null,"III","Volumen de porcinaza aplicado en 15 m2",null,null,null,null,null,null,null,null,null,null,null,null,null,null,null,null,null,null,null,null,null,null,{"$f":"(AC260*AC259)","v":0},null,null,"litros"]
[null,null,null,null,"IV",{"$f":"IF(AND(I119=FALSE,R119=FALSE,Z119=FALSE),\"Riego para el cultivo 1: \"&(\"\")&\"\",\"Riego para el cultivo 1: \"&(W123)&\" con \"&((FIXED(IF(AC124=\"Hectáreas (ha)\",W124,W124/10000),2)))&\" ha.  \")","v":"Riego para el cultivo 1: -Seleccione el cultivo. con 0,00 ha.  "}]
[null,null,null,null,null,"Número de aplicaciones en el ciclo o año:",null,null,null,null,null,null,null,null,null,null,null,null,null,null,null,null,null,null,null,null,null,null,{"$f":"IF(AND(I119=FALSE,R119=FALSE,Z119=FALSE),\"\",W133)","v":""}]
[null,null,null,null,null,"Cantidad de porcinaza líquida a aplicar por cultivo para cada aplicación:",null,null,null,null,null,null,null,null,null,null,null,null,null,null,null,null,null,null,null,null,null,null,{"$f":"IF(O235=\"\",\"\",IF((O235/W133)<1,FIXED((O235/W133),2,FALSE),FIXED((O235/W133),1,FALSE)))","v":""},null,null,{"$f":"R235","v":""}]
[null,null,null,null,null,"Tiempo utilizado para fertilizar el cultivo en cada aplicación:",null,null,null,null,null,null,null,null,null,null,null,null,null,null,null,null,null,null,null,null,null,null,{"$f":"IF(ISERROR(IF(AF265=\"días\",((FIXED(((W131/10000)*(X47+AB47))/IF(AD58=\"Si\",AB66,Y78),1,TRUE))*(IF(AC124=\"Hectáreas (ha)\",W124*10000,W124))*AC260)/AC261/60/24,IF(AF265=\"min.\",((FIXED(((W131/10000)*(X47+AB47))/IF(AD58=\"Si\",AB66,Y78),1,TRUE))*(IF(AC124=\"Hectáreas (ha)\",W124*10000,W124))*AC260)/AC261,((FIXED(((W131/10000)*(X47+AB47))/IF(AD58=\"Si\",AB66,Y78),1,TRUE))*(IF(AC124=\"Hectáreas (ha)\",W124*10000,W124))*AC260)/AC261/60))/W133),\"\",IF(AI123=1,IF(AF265=\"días\",((FIXED(((W131/10000)*(X47+AB47))/IF(AD58=\"Si\",AB66,Y78),1,TRUE))*(IF(AC124=\"Hectáreas (ha)\",W124*10000,W124))*AC260)/AC261/60/24,IF(AF265=\"min.\",((FIXED(((W131/10000)*(X47+AB47))/IF(AD58=\"Si\",AB66,Y78),1,TRUE))*(IF(AC124=\"Hectáreas (ha)\",W124*10000,W124))*AC260)/AC261,((FIXED(((W131/10000)*(X47+AB47))/IF(AD58=\"Si\",AB66,Y78),2,FALSE))*(IF(AC124=\"Hectáreas (ha)\",W124*10000,W124))*AC260)/AC261/60))/W133,IF(AF265=\"días\",((FIXED(((W132/W133)*(X47+AB47))/IF(AD58=\"Si\",AB66,Y78),1,TRUE))*AC260)/AC261/60/24,IF(AF265=\"min.\",((FIXED(((W132/W133)*(X47+AB47))/IF(AD58=\"Si\",AB66,Y78),1,TRUE))*AC260)/AC261,((FIXED(((W132/W133)*(X47+AB47))/IF(AD58=\"Si\",AB66,Y78),2,FALSE))*AC260)/AC261/60))))","v":""},null,null,"min."]
[null,null,null,null,"V",{"$f":"IF(OR(AND(I119=TRUE,R119=FALSE,Z119=FALSE),(AND(I119=FALSE,R119=FALSE,Z119=FALSE))),\"Riego para el cultivo 2: \"&(\"\")&\"\",\"Riego para el cultivo 2: \"&(W145)&\" con \"&((FIXED(IF(AC146=\"Hectáreas (ha)\",W146,W146/10000),2)))&\" ha. \")","v":"Riego para el cultivo 2: "}]
[null,null,null,null,null,"Número de aplicaciones en el ciclo o año:",null,null,null,null,null,null,null,null,null,null,null,null,null,null,null,null,null,null,null,null,null,null,{"$f":"IF(OR(AND(I119=TRUE,R119=FALSE,Z119=FALSE),(AND(I119=FALSE,R119=FALSE,Z119=FALSE))),\"\",W155)","v":""}]
[null,null,null,null,null,"Cantidad de porcinaza líquida a aplicar por cultivo para cada aplicación:",null,null,null,null,null,null,null,null,null,null,null,null,null,null,null,null,null,null,null,null,null,null,{"$f":"IF(U235=\"\",\"\",IF((U235/W155)<1,FIXED((U235/W155),2,FALSE),FIXED((U235/W155),1,FALSE)))","v":""},null,null,{"$f":"X235","v":""}]
[null,null,null,null,null,"Tiempo utilizado para fertilizar el cultivo en cada aplicación:",null,null,null,null,null,null,null,null,null,null,null,null,null,null,null,null,null,null,null,null,null,null,{"$f":"IF(ISERROR(IF(AF269=\"días\",((FIXED(((W153/10000)*(X47+AB47))/IF(AD58=\"Si\",AB66,Y78),1,TRUE))*(IF(AC146=\"Hectáreas (ha)\",W146*10000,W146))*AC260)/AC261/60/24,IF(AF269=\"min.\",((FIXED(((W153/10000)*(X47+AB47))/IF(AD58=\"Si\",AB66,Y78),1,TRUE))*(IF(AC146=\"Hectáreas (ha)\",W146*10000,W146))*AC260)/AC261,((FIXED(((W153/10000)*(X47+AB47))/IF(AD58=\"Si\",AB66,Y78),1,TRUE))*(IF(AC146=\"Hectáreas (ha)\",W146*10000,W146))*AC260)/AC261/60))/W155),\"\",IF(AI145=1,IF(AF269=\"días\",((FIXED(((W153/10000)*(X47+AB47))/IF(AD58=\"Si\",AB66,Y78),1,TRUE))*(IF(AC146=\"Hectáreas (ha)\",W146*10000,W146))*AC260)/AC261/60/24,IF(AF269=\"min.\",((FIXED(((W153/10000)*(X47+AB47))/IF(AD58=\"Si\",AB66,Y78),1,TRUE))*(IF(AC146=\"Hectáreas (ha)\",W146*10000,W146))*AC260)/AC261,((FIXED(((W153/10000)*(X47+AB47))/IF(AD58=\"Si\",AB66,Y78),2,FALSE))*(IF(AC146=\"Hectáreas (ha)\",W146*10000,W146))*AC260)/AC261/60))/W155,IF(AF269=\"días\",((FIXED(((W154/W155)*(X47+AB47))/IF(AD58=\"Si\",AB66,Y78),1,TRUE))*AC260)/AC261/60/24,IF(AF269=\"min.\",((FIXED(((W154/W155)*(X47+AB47))/IF(AD58=\"Si\",AB66,Y78),1,TRUE))*AC260)/AC261,((FIXED(((W154/W155)*(X47+AB47))/IF(AD58=\"Si\",AB66,Y78),2,FALSE))*AC260)/AC261/60))))","v":""},null,null,"min."]
[null,null,null,null,"VI",{"$f":"IF(OR(AND(I119=TRUE,R119=FALSE,Z119=FALSE),(AND(I119=FALSE,R119=TRUE,Z119=FALSE)),(AND(I119=FALSE,R119=FALSE,Z119=FALSE))),\"Riego para el cultivo 3: \"&(\"\")&\"\",\"Riego para el cultivo 3: \"&(W162)&\" con \"&((FIXED(IF(AC163=\"Hectáreas (ha)\",W163,W163/10000),2)))&\" ha.\")","v":"Riego para el cultivo 3: "}]
[null,null,null,null,null,"Número de aplicaciones en el ciclo o año:",null,null,null,null,null,null,null,null,null,null,null,null,null,null,null,null,null,null,null,null,null,null,{"$f":"IF(OR(AND(I119=TRUE,R119=FALSE,Z119=FALSE),(AND(I119=FALSE,R119=TRUE,Z119=FALSE)),(AND(I119=FALSE,R119=FALSE,Z119=FALSE))),\"\",W172)","v":""}]
[null,null,null,null,null,"Cantidad de porcinaza líquida a aplicar por cultivo para cada aplicación:",null,null,null,null,null,null,null,null,null,null,null,null,null,null,null,null,null,null,null,null,null,null,{"$f":"IF(AA235=\"\",\"\",IF((AA235/W172)<1,FIXED((AA235/W172),2,FALSE),FIXED((AA235/W172),1,FALSE)))","v":""},null,null,{"$f":"AD235","v":""}]
[null,null,null,null,null,"Tiempo utilizado para fertilizar el cultivo en cada aplicación:",null,null,null,null,null,null,null,null,null,null,null,null,null,null,null,null,null,null,null,null,null,null,{"$f":"IF(ISERROR(IF(AF273=\"días\",((FIXED(((W170/10000)*(X47+AB47))/IF(AD58=\"Si\",AB66,Y78),1,TRUE))*(IF(AC163=\"Hectáreas (ha)\",W163*10000,W163))*AC260)/AC261/60/24,IF(AF273=\"min.\",((FIXED(((W170/10000)*(X47+AB47))/IF(AD58=\"Si\",AB66,Y78),1,TRUE))*(IF(AC163=\"Hectáreas (ha)\",W163*10000,W163))*AC260)/AC261,((FIXED(((W170/10000)*(X47+AB47))/IF(AD58=\"Si\",AB66,Y78),1,TRUE))*(IF(AC163=\"Hectáreas (ha)\",W163*10000,W163))*AC260)/AC261/60))/W172),\"\",IF(AI162=1,IF(AF273=\"días\",((FIXED(((W170/10000)*(X47+AB47))/IF(AD58=\"Si\",AB66,Y78),1,TRUE))*(IF(AC163=\"Hectáreas (ha)\",W163*10000,W163))*AC260)/AC261/60/24,IF(AF273=\"min.\",((FIXED(((W170/10000)*(X47+AB47))/IF(AD58=\"Si\",AB66,Y78),1,TRUE))*(IF(AC163=\"Hectáreas (ha)\",W163*10000,W163))*AC260)/AC261,((FIXED(((W170/10000)*(X47+AB47))/IF(AD58=\"Si\",AB66,Y78),2,FALSE))*(IF(AC163=\"Hectáreas (ha)\",W163*10000,W163))*AC260)/AC261/60))/W172,IF(AF273=\"días\",((FIXED(((W171/W172)*(X47+AB47))/IF(AD58=\"Si\",AB66,Y78),1,TRUE))*AC260)/AC261/60/24,IF(AF273=\"min.\",((FIXED(((W171/W172)*(X47+AB47))/IF(AD58=\"Si\",AB66,Y78),1,TRUE))*AC260)/AC261,((FIXED(((W171/W172)*(X47+AB47))/IF(AD58=\"Si\",AB66,Y78),2,FALSE))*AC260)/AC261/60))))","v":""},null,null,"min."]
[]
[]
[]
[]
[]
[]
[]
[]
[]
[]
[]
[]
[]
[]
[]
[]
[]
[]
[]
[]
[null,null,null,"Aplicación mediante cañon de riego"]
[]
[null,null,null,null,"I","Diámetro del círculo que riega el cañon en cada giro",null,null,null,null,null,null,null,null,null,null,null,null,null,null,null,null,null,null,null,null,null,null,12,null,null,"m."]
[null,null,null,null,"II","Caudal de descarga",null,null,null,null,null,null,null,null,null,null,null,null,null,null,null,null,null,null,null,null,null,null,120,null,null,"l/min."]
[null,null,null,null,"III","Área cubierta en cada giro",null,null,null,null,null,null,null,null,null,null,null,null,null,null,null,null,null,null,null,null,null,null,{"$f":"(PI()*($AC$296/2)^2)/10000","v":1.1309733552923255E-2},null,null,"hectáreas"]
[null,null,null,null,"IV","Proporción del circulo a regar",null,null,null,null,null,null,null,null,null,null,null,null,null,null,null,null,null,null,null,null,null,null,"Círculo completo"]
[null,null,null,null,"V",{"$f":"IF(NOT(ISERROR(SEARCH(\"Pasto\",W123,1)))=TRUE,IF(AND(I119=FALSE,R119=FALSE,Z119=FALSE),\"Riego para el cultivo 1: \"&(\"\")&\"\",\"Riego para el cultivo 1: \"&(W123)&\" con \"&((FIXED(IF(AC124=\"Hectáreas (ha)\",W124,W124/10000),2)))&\" ha.  \"),\"\")","v":""}]
[null,null,null,null,null,"Número de aplicaciones en el ciclo o año.",null,null,null,null,null,null,null,null,null,null,null,null,null,null,null,null,null,null,null,null,null,null,{"$f":"IF(NOT(ISERROR(SEARCH(\"Pasto\",W123,1)))=TRUE,IF(AND(I119=FALSE,R119=FALSE,Z119=FALSE),\"\",W133),\"\")","v":""}]
[null,null,null,null,null,"Cantidad de porcinaza líquida a aplicar por cultivo para cada aplicación:",null,null,null,null,null,null,null,null,null,null,null,null,null,null,null,null,null,null,null,null,null,null,{"$f":"IF(NOT(ISERROR(SEARCH(\"Pasto\",W123,1)))=TRUE,IF(O235=\"\",\"\",IF((O235/W133)<1,FIXED((O235/W133),2,FALSE),FIXED((O235/W133),1,FALSE))),\"\")","v":""},null,null,{"$f":"IF(NOT(ISERROR(SEARCH(\"Pasto\",W123,1)))=TRUE,\"l/m2\",\"\")","v":""}]
[null,null,null,null,null,"Cantidad de porcinaza por sitio durante cada aplicación:",null,null,null,null,null,null,null,null,null,null,null,null,null,null,null,null,null,null,null,null,null,null,{"$f":"IF(NOT(ISERROR(SEARCH(\"Pasto\",W123,1)))=TRUE,IF(ISERROR((IF(AC124=\"Hectáreas (ha)\",W124*10000,W124))*FIXED(((W131/10000)*(X47+AB47))/IF(AD58=\"Si\",AB66,Y78),1,TRUE)/IF(AND(I119=FALSE,R119=FALSE,Z119=FALSE),\"\",IF(ISERROR((IF(AC124=\"Hectáreas (ha)\",W124,W124/10000))/(AC298*IF(AC299=\"Círculo completo\",1,IF(AC299=\"1/2 Círculo\",1/2,IF(AC299=\"3/4 de Círculo\",3/4,IF(AC299=\"1/4 de Círculo\",1/4,error)))))),\"\",(IF(AC124=\"Hectáreas (ha)\",W124,W124/10000))/(AC298*IF(AC299=\"Círculo completo\",1,IF(AC299=\"1/2 Círculo\",1/2,IF(AC299=\"3/4 de Círculo\",3/4,IF(AC299=\"1/4 de Círculo\",1/4,error)))))))),\"\",(IF(AC124=\"Hectáreas (ha)\",W124*10000,W124))*FIXED(((W131/10000)*(X47+AB47))/IF(AD58=\"Si\",AB66,Y78),1,TRUE)/IF(AND(I119=FALSE,R119=FALSE,Z119=FALSE),\"\",IF(ISERROR((IF(AC124=\"Hectáreas (ha)\",W124,W124/10000))/(AC298*IF(AC299=\"Círculo completo\",1,IF(AC299=\"1/2 Círculo\",1/2,IF(AC299=\"3/4 de Círculo\",3/4,IF(AC299=\"1/4 de Círculo\",1/4,error)))))),\"\",(IF(AC124=\"Hectáreas (ha)\",W124,W124/10000))/(AC298*IF(AC299=\"Círculo completo\",1,IF(AC299=\"1/2 Círculo\",1/2,IF(AC299=\"3/4 de Círculo\",3/4,IF(AC299=\"1/4 de Círculo\",1/4,error)))))))),\"\")","v":""},null,null,{"$f":"IF(NOT(ISERROR(SEARCH(\"Pasto\",W123,1)))=TRUE,\"l/sitio\",\"\")","v":""}]
[null,null,null,null,null,"Tiempo de descarga del cañón en cada sitio:",null,null,null,null,null,null,null,null,null,null,null,null,null,null,null,null,null,null,null,null,null,null,{"$f":"IF(NOT(ISERROR(SEARCH(\"Pasto\",W123,1)))=TRUE,IF(ISERROR(AC303/IF(AF297=\"l/min.\",AC297,AC297*16.666)),\"\",IF(AC303/IF(AF297=\"l/min.\",AC297,AC297*16.666)<1,FIXED(AC303/IF(AF297=\"l/min.\",AC297,AC297*16.666),2,TRUE),FIXED(AC303/IF(AF297=\"l/min.\",AC297,AC297*16.666),1,TRUE))),\"\")","v":""},null,null,{"$f":"IF(NOT(ISERROR(SEARCH(\"Pasto\",W123,1)))=TRUE,\"min./sitio\",\"\")","v":""}]
[null,null,null,null,null,"Tiempo utilizado para regar el cultivo durante cada aplicación:",null,null,null,null,null,null,null,null,null,null,null,null,null,null,null,null,null,null,null,null,null,null,{"$f":"IF(NOT(ISERROR(SEARCH(\"Pasto\",W123,1)))=TRUE,IF(ISERROR(IF(AF305=\"días\",((IF(AC124=\"Hectáreas (ha)\",W124*10000,W124))*FIXED(((W131/10000)*(X47+AB47))/IF(AD58=\"Si\",AB66,Y78),1,TRUE)*AC304)/AC303/60/24,IF(AF305=\"min.\",((IF(AC124=\"Hectáreas (ha)\",W124*10000,W124))*FIXED(((W131/10000)*(X47+AB47))/IF(AD58=\"Si\",AB66,Y78),1,TRUE)*AC304)/AC303,((IF(AC124=\"Hectáreas (ha)\",W124*10000,W124))*FIXED(((W131/10000)*(X47+AB47))/IF(AD58=\"Si\",AB66,Y78),1,TRUE)*AC304)/AC303/60))),\"\",IF(AF305=\"días\",((IF(AC124=\"Hectáreas (ha)\",W124*10000,W124))*FIXED(((W131/10000)*(X47+AB47))/IF(AD58=\"Si\",AB66,Y78),1,TRUE)*AC304)/AC303/60/24,IF(AF305=\"min.\",((IF(AC124=\"Hectáreas (ha)\",W124*10000,W124))*FIXED(((W131/10000)*(X47+AB47))/IF(AD58=\"Si\",AB66,Y78),1,TRUE)*AC304)/AC303,((IF(AC124=\"Hectáreas (ha)\",W124*10000,W124))*FIXED(((W131/10000)*(X47+AB47))/IF(AD58=\"Si\",AB66,Y78),1,TRUE)*AC304)/AC303/60))),\"\")","v":""},null,null,"min."]
[null,null,null,null,"VI",{"$f":"IF(NOT(ISERROR(SEARCH(\"Pasto\",W145,1)))=TRUE,IF(OR(AND(I119=TRUE,R119=FALSE,Z119=FALSE),(AND(I119=FALSE,R119=FALSE,Z119=FALSE))),\"Riego para el cultivo 2: \"&(\"\")&\"\",\"Riego para el cultivo 2: \"&(W145)&\" con \"&((FIXED(IF(AC146=\"Hectáreas (ha)\",W146,W146/10000),2)))&\" ha. \"),\"\")","v":""}]
[null,null,null,null,null,"Número de aplicaciones en el ciclo o año.",null,null,null,null,null,null,null,null,null,null,null,null,null,null,null,null,null,null,null,null,null,null,{"$f":"IF(NOT(ISERROR(SEARCH(\"Pasto\",W145,1)))=TRUE,IF(OR(AND(I119=TRUE,R119=FALSE,Z119=FALSE),(AND(I119=FALSE,R119=FALSE,Z119=FALSE))),\"\",W155),\"\")","v":""}]
[null,null,null,null,null,"Cantidad de porcinaza líquida a aplicar por cultivo para cada aplicación:",null,null,null,null,null,null,null,null,null,null,null,null,null,null,null,null,null,null,null,null,null,null,{"$f":"IF(NOT(ISERROR(SEARCH(\"Pasto\",W145,1)))=TRUE,IF(U235=\"\",\"\",IF((U235/W155)<1,FIXED((U235/W155),2,FALSE),FIXED((U235/W155),1,FALSE))),\"\")","v":""},null,null,{"$f":"IF(NOT(ISERROR(SEARCH(\"Pasto\",W145,1)))=TRUE,\"l/m2\",\"\")","v":""}]
[null,null,null,null,null,"Cantidad de porcinaza por sitio durante cada aplicación:",null,null,null,null,null,null,null,null,null,null,null,null,null,null,null,null,null,null,null,null,null,null,{"$f":"IF(NOT(ISERROR(SEARCH(\"Pasto\",W145,1)))=TRUE,IF(ISERROR((IF(AC146=\"Hectáreas (ha)\",W146*10000,W146))*FIXED(((W153/10000)*(X47+AB47))/IF(AD58=\"Si\",AB66,Y78),1,TRUE)/IF(OR(AND(I119=TRUE,R119=FALSE,Z119=FALSE),(AND(I119=FALSE,R119=FALSE,Z119=FALSE))),\"\",IF(ISERROR((IF(AC146=\"Hectáreas (ha)\",W146,W146/10000))/(AC298*IF(AC299=\"Círculo completo\",1,IF(AC299=\"1/2 Círculo\",1/2,IF(AC299=\"3/4 de Círculo\",3/4,IF(AC299=\"1/4 de Círculo\",1/4,error)))))),\"\",(IF(AC146=\"Hectáreas (ha)\",W146,W146/10000))/(AC298*IF(AC299=\"Círculo completo\",1,IF(AC299=\"1/2 Círculo\",1/2,IF(AC299=\"3/4 de Círculo\",3/4,IF(AC299=\"1/4 de Círculo\",1/4,error)))))))),\"\",(IF(AC146=\"Hectáreas (ha)\",W146*10000,W146))*FIXED(((W153/10000)*(X47+AB47))/IF(AD58=\"Si\",AB66,Y78),1,TRUE)/IF(OR(AND(I119=TRUE,R119=FALSE,Z119=FALSE),(AND(I119=FALSE,R119=FALSE,Z119=FALSE))),\"\",IF(ISERROR((IF(AC146=\"Hectáreas (ha)\",W146,W146/10000))/(AC298*IF(AC299=\"Círculo completo\",1,IF(AC299=\"1/2 Círculo\",1/2,IF(AC299=\"3/4 de Círculo\",3/4,IF(AC299=\"1/4 de Círculo\",1/4,error)))))),\"\",(IF(AC146=\"Hectáreas (ha)\",W146,W146/10000))/(AC298*IF(AC299=\"Círculo completo\",1,IF(AC299=\"1/2 Círculo\",1/2,IF(AC299=\"3/4 de Círculo\",3/4,IF(AC299=\"1/4 de Círculo\",1/4,error)))))))),\"\")","v":""},null,null,{"$f":"IF(NOT(ISERROR(SEARCH(\"Pasto\",W145,1)))=TRUE,\"l/sitio\",\"\")","v":""}]
[null,null,null,null,null,"Tiempo de descarga del cañón en cada sitio:",null,null,null,null,null,null,null,null,null,null,null,null,null,null,null,null,null,null,null,null,null,null,{"$f":"IF(NOT(ISERROR(SEARCH(\"Pasto\",W145,1)))=TRUE,IF(ISERROR(AC309/IF(AF297=\"l/min.\",AC297,AC297*16.666)),\"\",IF(AC309/IF(AF297=\"l/min.\",AC297,AC297*16.666)<1,FIXED(AC309/IF(AF297=\"l/min.\",AC297,AC297*16.666),2,TRUE),FIXED(AC309/IF(AF297=\"l/min.\",AC297,AC297*16.666),1,TRUE))),\"\")","v":""},null,null,{"$f":"IF(NOT(ISERROR(SEARCH(\"Pasto\",W145,1)))=TRUE,\"min./sitio\",\"\")","v":""}]
[null,null,null,null,null,"Tiempo utilizado para regar el cultivo durante cada aplicación:",null,null,null,null,null,null,null,null,null,null,null,null,null,null,null,null,null,null,null,null,null,null,{"$f":"IF(NOT(ISERROR(SEARCH(\"Pasto\",W145,1)))=TRUE,IF(ISERROR(IF(AF311=\"días\",((IF(AC146=\"Hectáreas (ha)\",W146*10000,W146))*FIXED(((W153/10000)*(X47+AB47))/IF(AD58=\"Si\",AB66,Y78),1,TRUE)*AC310)/AC309/60/24,IF(AF311=\"min.\",((IF(AC146=\"Hectáreas (ha)\",W146*10000,W146))*FIXED(((W153/10000)*(X47+AB47))/IF(AD58=\"Si\",AB66,Y78),1,TRUE)*AC310)/AC309,((IF(AC146=\"Hectáreas (ha)\",W146*10000,W146))*FIXED(((W153/10000)*(X47+AB47))/IF(AD58=\"Si\",AB66,Y78),1,TRUE)*AC310)/AC309/60))),\"\",IF(AF311=\"días\",((IF(AC146=\"Hectáreas (ha)\",W146*10000,W146))*FIXED(((W153/10000)*(X47+AB47))/IF(AD58=\"Si\",AB66,Y78),1,TRUE)*AC310)/AC309/60/24,IF(AF311=\"min.\",((IF(AC146=\"Hectáreas (ha)\",W146*10000,W146))*FIXED(((W153/10000)*(X47+AB47))/IF(AD58=\"Si\",AB66,Y78),1,TRUE)*AC310)/AC309,((IF(AC146=\"Hectáreas (ha)\",W146*10000,W146))*FIXED(((W153/10000)*(X47+AB47))/IF(AD58=\"Si\",AB66,Y78),1,TRUE)*AC310)/AC309/60))),\"\")","v":""},null,null,"min."]
[null,null,null,null,"VII",{"$f":"IF(NOT(ISERROR(SEARCH(\"Pasto\",W162,1)))=TRUE,IF(OR(AND(I119=TRUE,R119=FALSE,Z119=FALSE),(AND(I119=FALSE,R119=TRUE,Z119=FALSE)),(AND(I119=FALSE,R119=FALSE,Z119=FALSE))),\"Riego para el cultivo 3: \"&(\"\")&\"\",\"Riego para el cultivo 3: \"&(W162)&\" con \"&((FIXED(IF(AC163=\"Hectáreas (ha)\",W163,W163/10000),2)))&\" ha.\"),\"\")","v":""}]
[null,null,null,null,null,"Número de aplicaciones en el ciclo o año.",null,null,null,null,null,null,null,null,null,null,null,null,null,null,null,null,null,null,null,null,null,null,{"$f":"IF(NOT(ISERROR(SEARCH(\"Pasto\",W162,1)))=TRUE,IF(OR(AND(I119=TRUE,R119=FALSE,Z119=FALSE),(AND(I119=FALSE,R119=TRUE,Z119=FALSE)),(AND(I119=FALSE,R119=FALSE,Z119=FALSE))),\"\",W172),\"\")","v":""}]
[null,null,null,null,null,"Cantidad de porcinaza líquida a aplicar por cultivo para cada aplicación:",null,null,null,null,null,null,null,null,null,null,null,null,null,null,null,null,null,null,null,null,null,null,{"$f":"IF(NOT(ISERROR(SEARCH(\"Pasto\",W162,1)))=TRUE,IF(AA235=\"\",\"\",IF((AA235/W172)<1,FIXED((AA235/W172),2,FALSE),FIXED((AA235/W172),1,FALSE))),\"\")","v":""},null,null,{"$f":"IF(NOT(ISERROR(SEARCH(\"Pasto\",W162,1)))=TRUE,\"l/m2\",\"\")","v":""}]
[null,null,null,null,null,"Cantidad de porcinaza por sitio durante cada aplicación:",null,null,null,null,null,null,null,null,null,null,null,null,null,null,null,null,null,null,null,null,null,null,{"$f":"IF(NOT(ISERROR(SEARCH(\"Pasto\",W162,1)))=TRUE,IF(ISERROR((IF(AC163=\"Hectáreas (ha)\",W163*10000,W163))*FIXED(((W170/10000)*(X47+AB47))/IF(AD58=\"Si\",AB66,Y78),1,TRUE)/IF(OR(AND(I119=TRUE,R119=FALSE,Z119=FALSE),(AND(I119=FALSE,R119=TRUE,Z119=FALSE)),(AND(I119=FALSE,R119=FALSE,Z119=FALSE))),\"\",IF(ISERROR((IF(AC163=\"Hectáreas (ha)\",W163,W163/10000))/(AC298*IF(AC299=\"Círculo completo\",1,IF(AC299=\"1/2 Círculo\",1/2,IF(AC299=\"3/4 de Círculo\",3/4,IF(AC299=\"1/4 de Círculo\",1/4,error)))))),\"\",(IF(AC163=\"Hectáreas (ha)\",W163,W163/10000))/(AC298*IF(AC299=\"Círculo completo\",1,IF(AC299=\"1/2 Círculo\",1/2,IF(AC299=\"3/4 de Círculo\",3/4,IF(AC299=\"1/4 de Círculo\",1/4,error)))))))),\"\",(IF(AC163=\"Hectáreas (ha)\",W163*10000,W163))*FIXED(((W170/10000)*(X47+AB47))/IF(AD58=\"Si\",AB66,Y78),1,TRUE)/IF(OR(AND(I119=TRUE,R119=FALSE,Z119=FALSE),(AND(I119=FALSE,R119=TRUE,Z119=FALSE)),(AND(I119=FALSE,R119=FALSE,Z119=FALSE))),\"\",IF(ISERROR((IF(AC163=\"Hectáreas (ha)\",W163,W163/10000))/(AC298*IF(AC299=\"Círculo completo\",1,IF(AC299=\"1/2 Círculo\",1/2,IF(AC299=\"3/4 de Círculo\",3/4,IF(AC299=\"1/4 de Círculo\",1/4,error)))))),\"\",(IF(AC163=\"Hectáreas (ha)\",W163,W163/10000))/(AC298*IF(AC299=\"Círculo completo\",1,IF(AC299=\"1/2 Círculo\",1/2,IF(AC299=\"3/4 de Círculo\",3/4,IF(AC299=\"1/4 de Círculo\",1/4,error)))))))),\"\")","v":""},null,null,{"$f":"IF(NOT(ISERROR(SEARCH(\"Pasto\",W162,1)))=TRUE,\"l/sitio\",\"\")","v":""}]
[null,null,null,null,null,"Tiempo de descarga del cañón en cada sitio:",null,null,null,null,null,null,null,null,null,null,null,null,null,null,null,null,null,null,null,null,null,null,{"$f":"IF(NOT(ISERROR(SEARCH(\"Pasto\",W162,1)))=TRUE,IF(ISERROR(AC315/IF(AF297=\"l/min.\",AC297,AC297*16.666)),\"\",IF(AC315/IF(AF297=\"l/min.\",AC297,AC297*16.666)<1,FIXED(AC315/IF(AF297=\"l/min.\",AC297,AC297*16.666),2,TRUE),FIXED(AC315/IF(AF297=\"l/min.\",AC297,AC297*16.666),1,TRUE))),\"\")","v":""},null,null,{"$f":"IF(NOT(ISERROR(SEARCH(\"Pasto\",W162,1)))=TRUE,\"min./sitio\",\"\")","v":""}]
[null,null,null,null,null,"Tiempo utilizado para regar el cultivo durante cada aplicación:",null,null,null,null,null,null,null,null,null,null,null,null,null,null,null,null,null,null,null,null,null,null,{"$f":"IF(NOT(ISERROR(SEARCH(\"Pasto\",W162,1)))=TRUE,IF(ISERROR(IF(AF317=\"días\",((IF(AC163=\"Hectáreas (ha)\",W163*10000,W163))*FIXED(((W170/10000)*(X47+AB47))/IF(AD58=\"Si\",AB66,Y78),1,TRUE)*AC316)/AC315/60/24,IF(AF317=\"min.\",((IF(AC163=\"Hectáreas (ha)\",W163*10000,W163))*FIXED(((W170/10000)*(X47+AB47))/IF(AD58=\"Si\",AB66,Y78),1,TRUE)*AC316)/AC315,((IF(AC163=\"Hectáreas (ha)\",W163*10000,W163))*FIXED(((W170/10000)*(X47+AB47))/IF(AD58=\"Si\",AB66,Y78),1,TRUE)*AC316)/AC315/60))),\"\",IF(AF317=\"días\",((IF(AC163=\"Hectáreas (ha)\",W163*10000,W163))*FIXED(((W170/10000)*(X47+AB47))/IF(AD58=\"Si\",AB66,Y78),1,TRUE)*AC316)/AC315/60/24,IF(AF317=\"min.\",((IF(AC163=\"Hectáreas (ha)\",W163*10000,W163))*FIXED(((W170/10000)*(X47+AB47))/IF(AD58=\"Si\",AB66,Y78),1,TRUE)*AC316)/AC315,((IF(AC163=\"Hectáreas (ha)\",W163*10000,W163))*FIXED(((W170/10000)*(X47+AB47))/IF(AD58=\"Si\",AB66,Y78),1,TRUE)*AC316)/AC315/60))),\"\")","v":""},null,null,"min."]
[]
[]
[]
[]
[]
[]
[]
[]
[]
[]
[]
[null,"Recomendaciones para el manejo agronómico en la fertilización con porcinaza líquida."]
[]
[]
[null,"Señor porcicultor por favor tenga en cuenta las siguientes recomendaciones agronómicas con el fin de hacer del proceso de fertilización con porcinaza de sus cultivos, una actividad efectiva y equilibrada, con base en las necesidades de fósforo de su cultivo:"]
[]
[]
[null,"1. FORMAS DE APLICACIÓN: tenga en cuenta que existe distintas formas de disponer la porcinaza y los fertilizantes en un cultivo; si es una pastura preferiblemente debe hacerse al voleo buscando que quede homogéneamente distribuida en el área a fertilizar; en el caso de que se realice fertilización a un cultivo establecido como el café, la aplicación se debe hacer planta por planta en corona, a chuzo o en zanja; conservando una distancia entre la planta y la fuente nutricional aplicada (porcinaza); en el caso particular del cultivo de café se recomienda realizar la aplicación a 70 cm del tallo de la planta con un ancho de distribución del abono de 30 cm, en lo posible procure dejar incorporada en el suelo la porcinaza a fin de disminuir las pérdidas de fósforo."]
[]
[]
[]
[null,"Recuerde aplicar las dosis de porcinaza indicadas para las frecuencias señaladas a fin de evitar un aporte excesivo de fósforo, que pueda contaminar el medio ambiente debido a procesos de lixiviación o escorrentía de fosfatos."]
[]
[]
[]
[null,"2. PENDIENTE DEL TERRENO: cuando se realice la aplicación de la porcinaza y de las fuentes de fertilización en un terreno plano y en un cultivo establecido como el café, la aplicación se puede hacer alrededor de la planta; sin embargo, cuando la aplicación se hace en un terreno con pendiente como por ejemplo una montaña, es recomendable que la aplicación se haga sobre la parte alta en el terreno de cada planta, en estos casos se recomienda la aplicación en media corona alrededor de la planta, conservando la distancia entre la planta y la fuente nutricional aplicada (porcinaza)."]
[]
[]
[]
[]
[null,"3. FRECUENCIA DE APLICACIÓN: esta dependerá de dos factores, las condiciones climáticas (presencia o no de lluvias frecuentes) y la posibilidad o no de almacenamiento; en el caso de que existan periodos de lluvia muy frecuentes, se hace necesario ampliar los periodos de aplicación, pasando en algunos casos de fertilización diaria a cada 3 ó 4 días; ahora bien en el caso de que se hagan aplicaciones cada 3 ó 4 meses durante el año, correr éstas algunos días calendario,  lo anterior con el fin de evitar procesos de escorrentía o lixiviación.\nCuando exista posibilidades de almacenamiento de la porcinaza, se recomienda hacer 3 ó 4 aplicaciones de abono al cultivo durante el año; sin embargo si no existe forma de almacenar, la frecuencia de aplicación es mayor, siendo en algunos casos diaria."]
[]
[]
[]
[]
[null,"Procure conservar al menos 3 días almacenada la porcinaza en el tanque estercolero."]
[]
[null,"4. ELEMENTOS DE PROTECCIÓN PERSONAL: es recomendable que la aplicación de la porcinaza y/o los fertilizantes en un cultivo se realice usando guantes, preferiblemente de látex, al igual que el uso de overoles, botas de caucho y caretas que eviten el contacto directo del operario encargado de la fertilización con la fuente nutricional."]
[]
[]
[]
[null,"5. ANÁLISIS DE CARACTERIZACIÓN DE PORCINAZA: es recomendable que se realice una caracterización de la porcinaza generada en la granja, con el fin de poder estimar de manera más precisa el aporte en fósforo que esta pueda realizar como abono a su cultivo."]
[]
[]
[null,"6. ANÁLISIS DE QUÍMICA DE SUELOS: es recomendable realizar una caracterización química de los suelos donde se tiene la intensión o donde se realiza fertilización con porcinaza, a fin de realizar los ajustes pertinentes, el análisis debe ser de 1 año."]
[]
[]
[null,"Recuerde realizar la aplicación de la porcinaza temprano en la mañana o en el momento de mayor intensidad solar, lo anterior con el objetivo de garantizar las condiciones de inocuidad de la porcinaza."]
[]
[]
[]
[]
[]
[]
[]
[]
[]
[]
[]
[]
[]
[]
[null,"Recomendaciones para el control del riesgo sanitario y ambiental (recursos naturales) en la fertilización con porcinaza líquida."]
[]
[]
[null,"Señor porcicultor por favor tenga en cuenta las siguientes recomendaciones con el fin de evitar la afectación de las condiciones ambientales ante la ocurrencia de un posible evento que genere un efecto negativo al ambiente y que comprometa la calidad y conservación de los recursos naturales en la granja porcícola, como también la sanidad de otros predios:"]
[]
[]
[]
[null,"1. DISTANCIA A LOS CUERPOS DE AGUA: La porcinaza nunca debe caer directamente sobre los cuerpos de agua superficiales (ríos, quebradas, lagunas). La fertilización con porcinaza líquida debe realizarse conservando la ronda hidráulica y las franjas forestales protectoras."]
[]
[]
[]
[null,"2. HOMOGENIZACIÓN DE LA PORCINAZA: La porcinaza se debe homogenizar en el tanque estercolero antes de la aplicación, esto se puede hacer con motobomba, por medio de un retorno, o con un agitador manual o mecánico. Se debe regar toda el área de cultivos lo más homogéneamente posible; el operario debe aplicar la cantidad de porcinaza por unidad de área en toda la extensión calculada en el plan de fertilización, evitando concentraciones de porcinaza en un solo lugar."]
[]
[]
[]
[]
[null,"3. ALMACENAMIENTO: Se recomienda no dejar por más de 3 días la porcinaza en los tanques estercoleros con el fin de mitigar la generación de olores por procesos anaerobios y hacer un mayor aprovechamiento de los nutrientes contenidos en la porcinaza."]
[]
[]
[null,"4. OLORES: En el momento de fertilización con porcinaza líquida tenga en cuenta la dirección y velocidad de los vientos, tiempo y hora de aplicación, lo anterior con el fin de prevenir molestias a la comunidad."]
[]
[]
[null,"5. PLAN DE CONTINGENCIA: Tenga un plan de contingencia ante cualquier eventualidad ( fallas en bombas, fugas, derrames, falla eléctrica, transporte, entre otros) en el momento de la fertilización para los derrames accidentales.\n"]
[]
[]
[null,"6. TOPOGRAFÍA ASOCIADO AL RIESGO POR ESCORRENTÍA: Independiente del volumen total a aplicar, la excreta debe aplicarse de modo que no ocurra escorrentía durante la aplicación. La manera práctica para eliminar este riesgo es verificar que al  momento de la aplicación no ocurra encharcamiento ni escorrentía en ningún sitio del lote al que se le está aplicando porcinaza Se recomienda fertilizar cuando haya bajas precipitaciones."]
[]
[]
[]
[]
[null,"7. MOVILIZACIÓN DE LA PORCINAZA FUERA DEL PREDIO: En caso de requerir la movilización de la porcinaza fuera  del predio, tenga en cuenta que deberá contar con un sistema de  transporte  con las siguientes características: ser hermético, que evite derrames o escurrimientos. La carga a transportar no podrá exceder del 90% de la  capacidad máxima nominal de carga del vehículo. El conductor encargado de transportar la porcinaza deberá  utilizar  elementos de protección personal y debe tener conocimiento del plan de contingencias en caso de derrames o cualquier tipo de accidente relacionado el transporte de porcinaza."]
[]
[]
[]
[]
[]
[null,"8. PROHIBICIONES: La fertilización con porcinaza líquida no se podrá realizar en los siguientes casos:"]
[null,"- En cabeceras de las fuentes de agua.\n\n"]
[null,"- En sectores aguas arriba de las bocatomas para agua potable."]
[null,"- En cuerpos de agua que la autoridad ambiental competente declare total o parcialmente protegidos, de acuerdo con los artículos 70 y 137 del Decreto - Ley 2811 de 1974."]
[]
[null,"- En calles, calzadas y canales o sistemas de alcantarillados para aguas lluvias, cuando quiera que existan en forma separada o tengan esta única destinación."]
[]
[]
[null,"9. SI SU GRANJA ES POSITIVA A PEDv (Diarrea Epidemica Porcina) ó a PRRS (Síndrome Reproductivo y Respiratorio Porcino),tenga en cuenta las siguientes recomendaciones en el momento de la fertilización con porcinaza líquida:"]
[]
[null,"- Realice la fertilización en los momentos de mayor radiación solar, para garantizar la exposición del virus a los rayos UV y al calor del sol, ya que por efectos de la temperatura producida por la radiación solar aumenta la velocidad de degradación del virus.\n- En zonas de alta densidad porcina se recomienda no realizar la fertilización con porcinaza líquida por medio de cañones o sistemas de riego por aspersión, ya que este tipo de sistemas aumentan la posibilidad de contaminación por particulas transportadas por el viento."]
[]
[]
[]
[]
[]
[]
[null,"Recomendaciones"]

{"sheet":"Recomendaciones","index":3,"n_rows":94,"n_cols":2,"rows_kept":94,"cut":false,"hidden":false,"merged":[[47,1,48,35],[25,1,25,35],[4,1,5,35],[7,1,10,35],[12,1,13,35],[15,1,18,35],[20,1,23,35],[27,1,29,35],[31,1,32,35],[34,1,35,35],[37,1,38,35],[1,1,2,35],[93,1,96,35],[50,1,52,35],[54,1,56,35],[58,1,61,35],[63,1,64,35],[66,1,67,35],[69,1,70,35],[72,1,75,35],[77,1,81,35],[83,1,83,35],[86,1,87,35],[88,1,89,35],[91,1,92,35],[84,1,84,22],[85,1,85,22]]}
[]
[null,"Recomendaciones para el manejo agronómico en la fertilización con porcinaza líquida."]
[]
[]
[null,"Señor porcicultor por favor tenga en cuenta las siguientes recomendaciones agronómicas con el fin de hacer del proceso de fertilización con porcinaza de sus cultivos, una actividad efectiva y equilibrada, con base en las necesidades de fósforo de su cultivo:"]
[]
[]
[null,"1. FORMAS DE APLICACIÓN: tenga en cuenta que existe distintas formas de disponer la porcinaza y los fertilizantes en un cultivo; si es una pastura preferiblemente debe hacerse al voleo buscando que quede homogéneamente distribuida en el área a fertilizar; en el caso de que se realice fertilización a un cultivo establecido como el café, la aplicación se debe hacer planta por planta en corona, a chuzo o en zanja; conservando una distancia entre la planta y la fuente nutricional aplicada (porcinaza); en el caso particular del cultivo de café se recomienda realizar la aplicación a 70 cm del tallo de la planta con un ancho de distribución del abono de 30 cm, en lo posible procure dejar incorporada en el suelo la porcinaza a fin de disminuir las pérdidas de fósforo."]
[]
[]
[]
[]
[null,"Recuerde aplicar las dosis de porcinaza indicadas para las frecuencias señaladas a fin de evitar un aporte excesivo de fósforo, que pueda contaminar el medio ambiente debido a procesos de lixiviación o escorrentía de fosfatos."]
[]
[]
[null,"2. PENDIENTE DEL TERRENO: cuando se realice la aplicación de la porcinaza y de las fuentes de fertilización en un terreno plano y en un cultivo establecido como el café, la aplicación se puede hacer alrededor de la planta; sin embargo, cuando la aplicación se hace en un terreno con pendiente como por ejemplo una montaña, es recomendable que la aplicación se haga sobre la parte alta en el terreno de cada planta, en estos casos se recomienda la aplicación en media corona alrededor de la planta, conservando la distancia entre la planta y la fuente nutricional aplicada (porcinaza)."]
[]
[]
[]
[]
[null,"3. FRECUENCIA DE APLICACIÓN: esta dependerá de dos factores, las condiciones climáticas (presencia o no de lluvias frecuentes) y la posibilidad o no de almacenamiento; en el caso de que existan periodos de lluvia muy frecuentes, se hace necesario ampliar los periodos de aplicación, pasando en algunos casos de fertilización diaria a cada 3 ó 4 días; ahora bien en el caso de que se hagan aplicaciones cada 3 ó 4 meses durante el año, correr estas algunos días calendario,  lo anterior con el fin de evitar procesos de escorrentía o lixiviación.\nCuando exista posibilidades de almacenamiento de la porcinaza, se recomienda hacer 3 ó 4 aplicaciones de abono al cultivo durante el año; sin embargo si no existe forma de almacenar, la frecuencia de aplicación es mayor, siendo en algunos casos diaria."]
[]
[]
[]
[]
[null,"Procure conservar al menos 3 días almacenada la porcinaza en el tanque estercolero."]
[]
[null,"4. ELEMENTOS DE PROTECCIÓN PERSONAL: es recomendable que la aplicación de la porcinaza y/o los fertilizantes en un cultivo se realice usando guantes, preferiblemente de látex, al igual que el uso de overoles, botas de caucho y caretas que eviten el contacto directo del operario encargado de la fertilización con la fuente nutricional."]
[]
[]
[]
[null,"5. ANÁLISIS DE CARACTERIZACIÓN DE PORCINAZA: es recomendable que se realice una caracterización de la porcinaza generada en la granja, con el fin de poder estimar de manera más precisa el aporte en fósforo que esta pueda realizar como abono a su cultivo."]
[]
[]
[null,"6. ANÁLISIS DE QUÍMICA DE SUELOS: es recomendable realizar una caracterización química de los suelos donde se tiene la intensión o donde se realiza fertilización con porcinaza, a fin de realizar los ajustes pertinentes, el análisis debe ser de 1 año."]
[]
[]
[null,"Recuerde realizar la aplicación de la porcinaza temprano en la mañana o en el momento de mayor intensidad solar, lo anterior con el objetivo de garantizar las condiciones de inocuidad de la porcinaza."]
[]
[]
[]
[]
[]
[]
[]
[]
[]
[null,"Recomendaciones para el control del riesgo sanitario y ambiental (recursos naturales) en la fertilización con porcinaza líquida."]
[]
[]
[null,"Señor porcicultor por favor tenga en cuenta las siguientes recomendaciones con el fin de evitar la afectación de las condiciones ambientales ante la ocurrencia de un posible evento que genere un efecto negativo al ambiente y que comprometa la calidad y conservación de los recursos naturales en la granja porcícola, como también la sanidad de otros predios:"]
[]
[]
[]
[null,"1. DISTANCIA A LOS CUERPOS DE AGUA: La porcinaza nunca debe caer directamente sobre los cuerpos de agua superficiales (ríos, quebradas, lagunas). La fertilización con porcinaza líquida debe realizarse conservando la ronda hidráulica y las franjas forestales protectoras."]
[]
[]
[]
[null,"2. HOMOGENIZACIÓN DE LA PORCINAZA: La porcinaza se debe homogenizar en el tanque estercolero antes de la aplicación, esto se puede hacer con motobomba, por medio de un retorno, o con un agitador manual o mecánico. Se debe regar toda el área de cultivos lo más homogéneamente posible; el operario debe aplicar la cantidad de porcinaza por unidad de área en toda la extensión calculada en el plan de fertilización, evitando concentraciones de porcinaza en un solo lugar."]
[]
[]
[]
[]
[null,"3. ALMACENAMIENTO: Se recomienda no dejar por más de 3 días la porcinaza en los tanques estercoleros con el fin de mitigar la generación de olores por procesos anaerobios y hacer un mayor aprovechamiento de los nutrientes contenidos en la porcinaza."]
[]
[]
[null,"4. OLORES: En el momento de fertilización con porcinaza líquida tenga en cuenta la dirección y velocidad de los vientos, tiempo y hora de aplicación, lo anterior con el fin de prevenir molestias a la comunidad."]
[]
[]
[null,"5. PLAN DE CONTINGENCIA: Tenga un plan de contingencia ante cualquier eventualidad ( fallas en bombas, fugas, derrames, falla eléctrica, transporte, entre otros) en el momento de la fertilización para los derrames accidentales.\n"]
[]
[]
[null,"6. TOPOGRAFÍA ASOCIADO AL RIESGO POR ESCORRENTÍA: Independiente del volumen total a aplicar, la excreta debe aplicarse de modo que no ocurra escorrentía durante la aplicación. La manera práctica para eliminar este riesgo es verificar que al  momento de la aplicación no ocurra encharcamiento ni escorrentía en ningún sitio del lote al que se le está aplicando porcinaza Se recomienda fertilizar cuando haya bajas precipitaciones."]
[]
[]
[]
[]
[null,"7. MOVILIZACIÓN DE LA PORCINAZA FUERA DEL PREDIO: En caso de requerir la movilización de la porcinaza fuera  del predio, tenga en cuenta que deberá contar con un sistema de  transporte  con las siguientes características: ser hermético, que evite derrames o escurrimientos. La carga a transportar no podrá exceder del 90% de la  capacidad máxima nominal de carga del vehículo. El conductor encargado de transportar la porcinaza deberá  utilizar  elementos de protección personal y debe tener conocimiento del plan de contingencias en caso de derrames o cualquier tipo de accidente relacionado el transporte de porcinaza."]
[]
[]
[]
[]
[]
[null,"8. PROHIBICIONES: La fertilización con porcinaza líquida no se podrá realizar en los siguientes casos:"]
[null,"- En cabeceras de las fuentes de agua.\n\n"]
[null,"- En sectores aguas arriba de las bocatomas para agua potable."]
[null,"- En cuerpos de agua que la autoridad ambiental competente declare total o parcialmente protegidos, de acuerdo con los artículos 70 y 137 del Decreto - Ley 2811 de 1974."]
[]
[null,"- En calles, calzadas y canales o sistemas de alcantarillados para aguas lluvias, cuando quiera que existan en forma separada o tengan esta única destinación."]
[]
[]
[null,"9. SI SU GRANJA ES POSITIVA A PEDv (Diarrea Epidemica Porcina) ó a PRRS (Síndrome Reproductivo y Respiratorio Porcino),tenga en cuenta las siguientes recomendaciones en el momento de la fertilización con porcinaza líquida:"]
[]
[null,"- Realice la fertilización en los momentos de mayor radiación solar, para garantizar la exposición del virus a los rayos UV y al calor del sol, ya que por efectos de la temperatura producida por la radiación solar aumenta la velocidad de degradación del virus.\n- En zonas de alta densidad porcina se recomienda no realizar la fertilización con porcinaza líquida por medio de cañones o sistemas de riego por aspersión, ya que este tipo de sistemas aumentan la posibilidad de contaminación por particulas transportadas por el viento."]

{"sheet":"Anexos","index":4,"n_rows":122,"n_cols":12,"rows_kept":122,"cut":false,"hidden":false,"merged":[[117,4,117,9],[118,4,121,9],[47,1,47,9],[31,1,31,9],[19,1,19,9],[89,4,104,9],[105,4,105,9],[106,4,114,9],[115,4,115,9],[116,4,116,9],[84,4,84,9],[85,4,85,9],[86,4,86,9],[87,4,87,9],[88,4,88,9],[52,4,54,9],[21,2,21,3],[41,1,42,8],[5,1,5,9],[2,1,3,9],[58,4,58,9],[49,4,50,9],[55,4,55,9],[56,4,56,9],[57,4,57,9],[49,1,50,1],[49,2,50,2],[78,4,83,9],[49,3,50,3],[71,4,73,9],[74,4,74,9],[75,4,75,9],[76,4,76,9],[77,4,77,9],[59,4,61,9],[62,4,62,9],[63,4,68,9],[69,4,69,9],[70,4,70,9]]}
[]
[]
[null,"ANEXOS"]
[]
[]
[null,"PRODUCCIÓN ESTIMADA DE PORCINAZA COMO PROPORCIÓN DEL PESO VIVO"]
[]
[null,"ESTADO ETAREO","PROMEDIO\n100 kg de peso vivo","RANGO\n100 kg de peso vivo","PESO POR kg/animal","ESTIÉRCOL kg/animal/día"]
[null,"Hembra vacía",4.6100000000000003,"3,3 – 6,4",160,7.38]
[null,"Hembra gestante",3,"2,7 – 3,2",180,5.4]
[null,"Hembra lactante",7.72,"6,0 – 8,9",190,14.67]
[null,"Macho reproductor",2.81,"2,0 – 3,3",200,5.62]
[null,"Lechón lactante (camada)",8.02,"6,8 – 10,9",3.5,0.28000000000000003]
[null,"Precebos",7.64,"6,6 – 1,6",18,1.38]
[null,"Levante",6.26,"5,9 – 6,6",70,4.38]
[null,"Ceba",6.26,"5,7 – 6,5",70,4.38]
[]
[null,"Fuente: Guía Ambiental para el subsector porcícola, 2002"]
[]
[null,"CONSUMO MEDIO DE AGUA DE LIMPIEZA"]
[]
[null,"ESTADO ETAREO","Consumo agua\nl/animal/día"]
[null,"Hembra lactante",0.32,1.18]
[null,"Hembra reposición",1.18,2.21]
[null,"Macho reproductor",1.18,2.21]
[null,"Precebo",0.12,0.59]
[null,"Levante",0.12,0.9]
[null,"Finalización",0.12,1.1100000000000001]
[]
[null,"Fuente: Guía de mejores técnicas disponibles del sector porcino, Unión Europea, 2006"]
[]
[null,"PRODUCCIÓN DE EXCRETAS SEGÚN LA FASE DE DESARROLLO DEL ANIMAL"]
[]
[null,"GRUPO ETAREO","Peso\n(kg)","Producción excretas\n(l/día)","Sólidos totales\n(Kg/día)","DBO5 \n(Kg/día)","N \n(Kg/día)","P\n(Kg/día)","K\n(Kg/día)"]
[null,"Cría",16,1,0.09,0.08,0.01,0.01,0.01]
[null,"Recria",29,1.8,0.18,0.14000000000000001,0.01,0.01,0.01]
[null,"Engorde",68,4.3,0.41,0.33,0.03,0.02,0.02]
[null,"Gestación*",125,4.2,0.37,0.3,0.03,0.02,0.02]
[null,"Maternidad con cría",170,15.1,1.36,1.0900000000000001,0.1,0.08,0.08]
[null,"Verraco",159,5.3,0.45,0.38,0.04,0.03,0.03]
[]
[null,"Tomado de: Recomendaciones Técnicas para la Gestión Ambiental en el Manejo de Purines de la Explotación Porcina - Instituto de Investigaciones Agropecuarias, Ministerio de Agricultura - Chile, 2005"]
[]
[null,"Fuente: http://www.purdue.edu/dp/envirosoft/manure/src/main.htm"]
[]
[]
[]
[null,"NIVELES DE REFERENCIA PARA APORTE DE FÓSFORO EN CULTIVOS."]
[null,null,null,null,null,null,null,null,null,"Kg/ha/aplicación","Kg/m2/aplicación","Kg/planta/aplicación"]
[null,"Nombre Común","Fertilización de P (Kg/ha) ","Plantas/ha","Fuente",null,null,null,null,null,{"$f":"VLOOKUP(Formato!W123,B53:K122,10,FALSE)","v":{"$error":"#N/A"}},{"$f":"VLOOKUP(Formato!W145,B53:K122,10,FALSE)","v":{"$error":"#N/A"}}]
[null,null,null,null,null,null,null,null,null,null,{"$f":"VLOOKUP(Formato!W162,B53:K122,10,FALSE)","v":{"$error":"#N/A"}}]
[null,"-Seleccione el cultivo.","0","0",null,null,null,null,null,null,"2",2]
[null,"Aguacate 1 año",10,400,"Secretaría de agricultura y desarrollo rural-Gobernación de Antioquia. (2014). Manual Actualización Tecnológica y BPA en el Cultivo de Aguacate. Recuperado el 2 de Marzo de 2016, de http://conectarural.org/sitio/sites/default/files/documentos/Manual%20Actualizacion%20Tecnologica%20y%20BPA%20Cultivo%20de%20Aguacate_GOBERNACION%20PDF%20BAJA%20con%20caratulas.pdf",null,null,null,null,null,2,1]
[null,"Aguacate 2 años",40,400,null,null,null,null,null,null,2,1]
[1,"Aguacate 3 años",120,400,null,null,null,null,null,null,2,1]
[1,"Arveja",35.200000000000003,200000,"Nutrimon. (s.f.). Vademecum Cultivos de Clima Medio. Recuperado el 24 de Abril de 2016, de http://www.monomeros.com/descargas/dpmanualfrio.pdf",null,null,null,null,null,1,1]
[1,"Avena forrajera",35.200000000000003,2500000,"Instituto Colombiano Agropecuario. (1992). Fertilización en diversos cultivos. (5 ta. ed.). Bogotá: PRODUMEDIOS.",null,null,null,null,null,1,1]
[2,"Bore",42,4445,"FAO. (2003). Una revisión sobre el Bore (Alocasia macrorrhiza). Obtenido de http://www.fao.org/docrep/006/y4435s/y4435s0i.htm#TopOfPage",null,null,null,null,null,2,1]
[2,"Cacao",14,1110,"Instituto Colombiano Agropecuario. (1992). Fertilización en diversos cultivos. (5 ta. ed.). Bogotá: PRODUMEDIOS.",null,null,null,null,null,2,1]
[1,"Café alta densidad",22,7500,"CENICAFE. (Octubre de 2012). Alterativas generales de fertilización para cafetales en la etapa de producción. Recuperado el 23 de Marzo de 2016, de http://www.cenicafe.org/es/publications/avt04241.pdf",null,null,null,null,null,2,1]
[1,"Café mediana densidad",20.9,5000,null,null,null,null,null,null,2,1]
[1,"Café moderada densidad",18.7,4000,null,null,null,null,null,null,2,1]
[1,"Caña de azúcar",20,60000,"CENICAÑA. (1995). El cultivo de la caña en la zona azucarera de Colombia. Recuperado el 31 de Marzo de 2016, de http://www.cenicana.org/publicaciones/libro_cana/libro_cana.php",null,null,null,null,null,1,1]
[1,"Cítricos 1-2 años",3.52,400,"García, A. (2014). Manejo de suelos y diseño de la nutrición en cultivos cítricos. Recuperado el 23 de Marzo de 2016, de http://webcache.googleusercontent.com/search?q=cache:auXJx1-UWYEJ:www.asohofrucol.com.co/archivos/biblioteca/biblioteca_67_Manejo%2520de%2520suelos%2520y%2520dise%25C3%25B1o%2520de%2520la%2520nutrici%25C3%25B3n%2520en%2520cultivos%2520de%2520c%25C3%25ADtr",null,null,null,null,null,2,1]
[2,"Cítricos 3-4 años",7.04,400,null,null,null,null,null,null,2,1]
[1,"Cítricos 5-6 años",10.56,400,null,null,null,null,null,null,2,1]
[1,"Cítricos 7-8 años",17.600000000000001,400,null,null,null,null,null,null,2,1]
[1,"Cítricos 9-10 años",26.4,400,null,null,null,null,null,null,2,1]
[1,"Cítricos >10 años",35.200000000000003,400,null,null,null,null,null,null,2,1]
[1,"Chontaduro",100,235,"Corpoica. (s.f.). El cultivo de chontaduro. Florencia, Colombia. Recuperado el 15 de Abril de 2016.",null,null,null,null,null,2,1]
[1,"Frijol",60,200000,"Nutrimon. (s.f.). Vademecum Cultivos de Clima Medio. Recuperado el 24 de Abril de 2016, de http://www.monomeros.com/descargas/vadem_climamedio_WEB.pdf",null,null,null,null,null,1,1]
[1,"Guanábana 1-2 años",60,238,"Sephu. (2010). CULTIVO DE LA GUANÁBANA: Recomendaciones para solucionar problemas de Floración, Cuajado y Aborto de Flores. Recuperado el 3 de Marzo de 2016, de https://www.interempresas.net/FeriaVirtual/Catalogos_y_documentos/81972/046---11.05.10---Cultivo-de-la-Guana--769-bana.pdf",null,null,null,null,null,2,1]
[2,"Guanábana 3-4 años",120,238,null,null,null,null,null,null,2,1]
[1,"Guanábana 5-6 años",180,238,null,null,null,null,null,null,2,1]
[1,"Guayaba",60,951,"Ministerio de la Agricultura Instituto de Investigaciones en Fruticultura Tropical Asociación Cubana de Técnicos Agrícolas y Forestales. (2011). INSTRUCTIVO TÉCNICO PARA EL CULTIVO DE LA GUAYABA. Recuperado el 23 de Mayo de 2016, de http://www.innovacion.gob.sv/inventa/attachments/article/4330/index.pdf",null,null,null,null,null,2,1]
[1,"Habichuela",11,165000,"ORTEGA, E. Y. (1999). EVALUACiÓN DEL CULTIVO DE LA HABICHUELA (Phaseolus vulgaris) UTILIZANDO FUENTES ORGÁNICAS (GALLINAZA y LOMBRICOMPUESTO) COMO COMPLEMENTO DE LA FERTILIZACIÓN QUÍMICA EN EL MUNICIPIO DE CASTILLA LA NUEVA - META. Recuperado el 6 de Junio de 2016, de http://bibliotecadigital.agronet.gov.co/jspui/bitstream/11348/6784/1/052.pdf",null,null,null,null,null,1,1]
[1,"Higuerilla",70,1667,"Universidad de Córdoba. (2014). RENDIMIENTO EN SEMILLAS Y CALIDAD DE LOS ACEITES DEL CULTIVO DE HIGUERILLA EN EL VALLE DEL SINÚ, DEPARTAMENTO DE CÓRDOBA. (F. e. Córdoba., Ed.) Recuperado el 5 de Mayo de 2016, de http://comalfi.com.co/data/documents/Libro-Higuerilla.pdf",null,null,null,null,null,2,1]
[2,"Maíz",38,74000,"IICA. (2014). Guía técnica el cultivo del maíz. Recuperado el 04 de Abril de 2016, de http://www.observatorioredsicta.info/sites/default/files/docplublicaciones/el_salvador_guiatecnica_maiz_2014.pdf",null,null,null,null,null,1,1]
[1,"Mango 1 año",2442,185,"FHIA. (2009). Recomendaciones prácticas para la fertilización del cultivo de mango. Recuperado el 13 de Abril de 2016, de http://www.fhia.org.hn/dowloads/lab_quimico_agricola_pdfs/hojatec3fertdemangoagot2009.pdf",null,null,null,null,null,2,1]
[2,"Mango 2-4 años",6919,185,null,null,null,null,null,null,2,1]
[1,"Mango 5-10 años",6919,185,null,null,null,null,null,null,2,1]
[1,"Mango 11-15 años",12210,185,null,null,null,null,null,null,2,1]
[1,"Mango 16-20 años",16280,185,null,null,null,null,null,null,2,1]
[1,"Mango >20 años",16280,185,null,null,null,null,null,null,2,1]
[1,"Maracuyá",15,330,"Dirección General de Investigación y Extensión Agrícola. (1991). Aspectos Técnicos sobre Cuarenta y Cinco Cultivos Agrícolas de Costa Rica. Recuperado el 12 de Febrero de 2016, de http://www.mag.go.cr/bibioteca_virtual_ciencia/tec_maracuya.pdf",null,null,null,null,null,2,1]
[1,"Mora",8,2000,"Cámara de comercio de Bogotá. (2015). Manual Mora. Recuperado el 05 de Agosto de 2016, de http://bibliotecadigital.ccb.org.co/bitstream/handle/11520/14319/Mora.pdf?sequence=1&isAllowed=y",null,null,null,null,null,2,1]
[1,"Nuez macadamia",20,278,"CULTIVO DE NUEZ DE MACADAMIA. (s.f.). Recuperado el 21 de Marzo de 2016, de http://www.anacafe.org/glifos/index.php?title=Cultivo_de_nuez_macadamia",null,null,null,null,null,2,1]
[1,"Palma Africana",26,143,"Instituto Colombiano Agropecuario. (1992). Fertilización en diversos cultivos. (5 ta. ed.). Bogotá: PRODUMEDIOS.",null,null,null,null,null,2,1]
[1,"Papaya",10.4,1650,"Corpoica. (s.f.). El cultivo de la papaya en los llanos orientales de Colombia (Vol. 1). Villavicencio, Colombia. Recuperado el 15 de Abril de 2016",null,null,null,null,null,2,1]
[1,"Pasto Buffel",33,"-","Instituto Colombiano Agropecuario. (1992). Fertilización en diversos cultivos. (5 ta. ed.). Bogotá: PRODUMEDIOS.",null,null,null,null,null,1,2]
[1,"Pasto Elefante",33,"-",null,null,null,null,null,null,1,2]
[2,"Pasto Estrella",22,"-",null,null,null,null,null,null,1,2]
[2,"Pasto Festuca alta o media",33,"-",null,null,null,null,null,null,1,2]
[2,"Pasto Brachiaria",22,"-",null,null,null,null,null,null,1,2]
[2,"Pasto Gordura",33,"-",null,null,null,null,null,null,1,2]
[2,"Pasto Guatemala",33,"-",null,null,null,null,null,null,1,2]
[2,"Pasto kikuyo",22,"-",null,null,null,null,null,null,1,2]
[2,"Pasto king-grass",22,"-",null,null,null,null,null,null,1,2]
[2,"Pasto Micay",33,"-",null,null,null,null,null,null,1,2]
[2,"Pasto Pangola",33,"-",null,null,null,null,null,null,1,2]
[2,"Pasto Para",33,"-",null,null,null,null,null,null,1,2]
[2,"Pasto Sudan",33,"-",null,null,null,null,null,null,1,2]
[2,"Piña",33,51000,null,null,null,null,null,null,2,1]
[2,"Plátano",33,1500,null,null,null,null,null,null,2,1]
[1,"Sorgo forrajero",44,250000,null,null,null,null,null,null,1,1]
[1,"Tabaco",150,18500,"Morera, F. (1987).El cultivo del tabaco. (2 ta. ed.). San José: UNIVERSIDAD A ESTATAL A DISTANCIA. Recuperado el 09 de Agosto de 2016, de https://books.google.com.co/books?id=nFaGuHnb5pgC&pg=PA21&lpg=PA21&dq=densidad+de+siembra+del+tabaco&source=bl&ots=JwKsNnoCsR&sig=FXZT1vcT4TL3fqo53RFnvEaqcpQ&hl=es&sa=X&ved=0ahUKEwj-y6Sx5bTOAhXIMyYKHeocBpkQ6AEIOTAF#v=onepage&q=densidad%20de%20siembra%20del%20tabaco&f=false",null,null,null,null,null,2,1]
[2,"Tamarindo 1 año",4.1399999999999997,138,"\nSAGARPA. (2001). EL CULTIVO DE TAMARINDO EN EL TRÓPICO SECO DE MÉXICO. Tecoman. Recuperado el 14 de Julio de 2016, de http://www.innovacion.gob.sv/inventa/attachments/article/2186/61michoacan.pdf\n",null,null,null,null,null,2,1]
[1,"Tamarindo 2 años",8.2799999999999994,138,null,null,null,null,null,null,2,1]
[1,"Tamarindo 3 años",16.559999999999999,138,null,null,null,null,null,null,2,1]
[1,"Tamarindo 4 años",33.119999999999997,138,null,null,null,null,null,null,2,1]
[1,"Tamarindo 5 años",66.239999999999995,138,null,null,null,null,null,null,2,1]
[1,"Tamarindo 6 años",118.67999999999999,138,null,null,null,null,null,null,2,1]
[1,"Tamarindo 7 años",171.12,138,null,null,null,null,null,null,2,1]
[1,"Tamarindo 8-9 años",223.56,138,null,null,null,null,null,null,2,1]
[1,"Tamarindo 10 años",276,138,null,null,null,null,null,null,2,1]
[1,"Tomate chonto",40,23310,"COMPO EXPERT. (s.f.). Programa de fertilización en tomates. Obtenido de http://www.compo-expert.com/fileadmin/user_upload/compo_expert/cl/documents/Programa_Tomates.pdf",null,null,null,null,null,1,1]
[1,"Tomate de árbol",40,1156,"Cámara de Comercio de Bogotá, C. (2015). MANUAL TOMATE DE ÁRBOL PROGRAMA DE APOYO AGRÍCOLA Y AGROINDUSTRIAL VICEPRESIDENCIA DE FORTALECIMIENTO EMPRESARIAL CÁMARA DE COMERCIO DE BOGOTÁ. Recuperado el 31 de Marzo de 2016, de https://webcache.googleusercontent.com/search?q=cache:T2F1Mf848WAJ:https://www.ccb.org.co/content/download/13726/175108/file/Tomate%2520de%2520%25C3%25A1rbol.pdf+&cd=10&hl=es&ct=clnk&gl=co",null,null,null,null,null,2,1]
[1,"Uva",13.2,1111,"MANUAL TÉCNICO DEL CULTIVO DE LA UVA. (2006). Recuperado el 21 de Marzo de 2016, de http://huila.gov.co/documentos/M/manual%20tecnico%20de%20la%20uva%20en%20el%20Huila.pdf",null,null,null,null,null,2,1]
[1,"Zapote 1 año",6.75,100,"Ministerio de la Agricultura Instituto de Investigaciones en Fruticultura Tropical Asociación Cubana de Técnicos Agrícolas y Forestales. (2011). INSTRUCTIVO TÉCNICO PARA EL CULTIVO DEL MAMEY COLORADO O ZAPOTE. Recuperado el 23 de Mayo de 2016, de http://www.actaf.co.cu/index.php?option=com_mtree&task=att_download&link_id=472&cf_id=24",null,null,null,null,null,2,1]
[1,"Zapote 2-3 años",17.5,100,null,null,null,null,null,null,2,1]
[1,"Zapote 3-4 años",24.8,100,null,null,null,null,null,null,2,1]
[1,"Zapote 4-5 años",30,100,null,null,null,null,null,null,2,1]

{"sheet":"Hoja1","index":5,"n_rows":34,"n_cols":4,"rows_kept":34,"cut":false,"hidden":true,"merged":[]}
["Amazonas",null,null,"CVS     -     Corporación Autónoma Regional de los valles del Sinú y San Jorge."]
["Antioquia",null,null,"CVC     -     Corporación Autónoma Regional del Valle del Cauca."]
["Arauca",null,null,"CSB     -     Corporación Autónoma Regional del Sur de Bolívar."]
["Atlántico",null,null,"CRQ     -     Corporación Autónoma Regional del Quindío."]
["Bogotá, D. C.",null,null,"CRC     -     Corporación Autónoma Regional del Cauca."]
["Bolívar",null,null,"CRA     -     Corporación Autónoma Regional del Atlántico."]
["Boyacá",null,null,"CORTOLIMA     -     Corporación Autónoma Regional del Tolima."]
["Caldas",null,null,"CORPOURABA     -     Corporación para el desarrollo sostenible del Urabá"]
["Caquetá",null,null,"CORPORINOQUIA     -     Corporación Autónoma Regional de la Orinoquía"]
["Casanare",null,null,"CORPONOR     -     Corporación Autónoma Regional de Norte de Santander"]
["Cauca",null,null,"CORPONARIÑO     -     Corporación Autónoma Regional de Nariño."]
["Cesar",null,null,"CORPOMOJANA -Corporación para el desarrollo sostenible de la Mojana y el San Jorge"]
["Chocó",null,null,"CORPOGUAVIO     -     Corporación Autónoma Regional del Guavio."]
["Córdoba",null,null,"CORPOGUAJIRA     -     Corporación Autónoma Regional de La Guajira."]
["Cundinamarca",null,null,"CORPOCHIVOR     -     Corporación Autónoma Regional de Chivor."]
["Guainía",null,null,"CORPOCESAR     -     Corporación Autónoma Regional del Cesar."]
["Guaviare",null,null,"CORPOCALDAS     -     Corporación Autónoma Regional de Caldas."]
["Huila",null,null,"CORPOBOYACA     -     Corporación Autónoma Regional de Boyacá."]
["La Guajira",null,null,"CORPOAMAZONÍA - Corporación para el desarrollo sostenible del sur de la Amazonía."]
["Magdalena",null,null,"CORPAMAG     -     Corporación Autónoma Regional del Magdalena."]
["Meta",null,null,"CORNARE - Corporación Autónoma Regional de las cuencas de los ríos Negro y Nare."]
["Nariño",null,null,"CORMAGDALENA - Corporación Autónoma Regional del Rio Grande de la Magdalena."]
["Norte De Santander",null,null,"CORMACARENA     -     Corporación para el desarrollo sostenible de la Macarena"]
["Putumayo",null,null,"CORANTIOQUIA     -     Corporación Autónoma Regional del Centro de Antioquia"]
["Quindío",null,null,"CORALINA - Corporación para el desarrollo sostenible del archipiélago de San Andrés, Providencia y Santa Catalina."]
["Risaralda",null,null,"CODECHOCO     -     Corporación para el desarrollo sostenible del Chocó"]
["San Andrés y Providencia ",null,null,"CDMB   -   Corporación Autónoma Regional de Defensa de la meseta de Bucaramanga."]
["Santander",null,null,"CDA     -     Corporación para el Desarrollo Sostenible del Norte y Oriente Amazónico."]
["Sucre",null,null,"CAS     -     Corporación Autónoma Regional de Santander."]
["Tolima",null,null,"CARSUCRE     -     Corporación Autónoma Regional de Sucre."]
["Valle Del Cauca",null,null,"CARDIQUE     -     Corporación Autónoma Regional del Dique."]
["Vaupés",null,null,"CARDER     -     Corporación Autónoma Regional de Risaralda."]
["Vichada",null,null,"CAR     -     Corporación Autónoma Regional de Cundinamarca"]
[null,null,null,"CAM     -     Corporación Autónoma Regional del Alto Magdalena"]